Department,Entity,Date of Payment,Expense Type,Expense Area,Supplier,Transaction Number,Amount
"Department for Business, Innovation and Skills","Department for Business, Innovation and Skills",14/07/2011,Stationery,Shareholder Executive - Shareholder Executive,OFFICE DEPOT UK LTD,1026127,-149.04
"Department for Business, Innovation and Skills","Department for Business, Innovation and Skills",12/07/2011,Other IT Costs (Programme),Market and Frameworks Group - Consumer and Competition Policy,TRADING STANDARDS INSTITUTE (TSI),1026367,37199.62
"Department for Business, Innovation and Skills","Department for Business, Innovation and Skills",08/07/2011,Standard Desktop Plus Service (PFI),Finance & Commercial Group - Commercial Directorate,FUJITSU SERVICES LTD,1027827,3119.83
"Department for Business, Innovation and Skills","Department for Business, Innovation and Skills",08/07/2011,Standard Desktop Plus Service (PFI),Finance & Commercial Group - Commercial Directorate,FUJITSU SERVICES LTD,1027828,2796.01
"Department for Business, Innovation and Skills","Department for Business, Innovation and Skills",08/07/2011,Standard Desktop Plus Service (PFI),Finance & Commercial Group - Commercial Directorate,FUJITSU SERVICES LTD,1027841,3573.08
"Department for Business, Innovation and Skills","Department for Business, Innovation and Skills",08/07/2011,Standard Desktop Plus Service (PFI),Finance & Commercial Group - Commercial Directorate,FUJITSU SERVICES LTD,1027843,2812.74
"Department for Business, Innovation and Skills","Department for Business, Innovation and Skills",08/07/2011,Standard Desktop Plus Service (PFI),Finance & Commercial Group - Commercial Directorate,FUJITSU SERVICES LTD,1028020,2706.69
"Department for Business, Innovation and Skills","Department for Business, Innovation and Skills",08/07/2011,Standard Desktop Plus Service (PFI),Finance & Commercial Group - Commercial Directorate,FUJITSU SERVICES LTD,1028022,2520.42
"Department for Business, Innovation and Skills","Department for Business, Innovation and Skills",08/07/2011,Standard Desktop Plus Service (PFI),Finance & Commercial Group - Commercial Directorate,FUJITSU SERVICES LTD,1028026,2051.42
"Department for Business, Innovation and Skills","Department for Business, Innovation and Skills",29/07/2011,Recovery of Loan Guarantees (Classed as Capital Grants),Business & Skills Group - Enterprise Directorate,BERR SFLG PAYMENT TO LENDERS,1028095,-6757.95
"Department for Business, Innovation and Skills","Department for Business, Innovation and Skills",29/07/2011,Recovery of Loan Guarantees (Classed as Capital Grants),Business & Skills Group - Enterprise Directorate,BERR SFLG PAYMENT TO LENDERS,1028095,-90628
"Department for Business, Innovation and Skills","Department for Business, Innovation and Skills",29/07/2011,Recovery of Loan Guarantees (Classed as Capital Grants),Business & Skills Group - Enterprise Directorate,BERR SFLG PAYMENT TO LENDERS,1028096,-80432.22
"Department for Business, Innovation and Skills","Department for Business, Innovation and Skills",29/07/2011,Recovery of Loan Guarantees (Classed as Capital Grants),Business & Skills Group - Enterprise Directorate,BERR SFLG PAYMENT TO LENDERS,1028096,-22223.81
"Department for Business, Innovation and Skills","Department for Business, Innovation and Skills",29/07/2011,Recovery of Loan Guarantees (Classed as Capital Grants),Business & Skills Group - Enterprise Directorate,BERR SFLG PAYMENT TO LENDERS,1028097,-61185.64
"Department for Business, Innovation and Skills","Department for Business, Innovation and Skills",29/07/2011,Recovery of Loan Guarantees (Classed as Capital Grants),Business & Skills Group - Enterprise Directorate,BERR SFLG PAYMENT TO LENDERS,1028097,-180226.59
"Department for Business, Innovation and Skills","Department for Business, Innovation and Skills",29/07/2011,Recovery of Loan Guarantees (Classed as Capital Grants),Business & Skills Group - Enterprise Directorate,BERR SFLG PAYMENT TO LENDERS,1028099,-3196.51
"Department for Business, Innovation and Skills","Department for Business, Innovation and Skills",29/07/2011,Recovery of Loan Guarantees (Classed as Capital Grants),Business & Skills Group - Enterprise Directorate,BERR SFLG PAYMENT TO LENDERS,1028099,-642.17
"Department for Business, Innovation and Skills","Department for Business, Innovation and Skills",29/07/2011,Recovery of Loan Guarantees (Classed as Capital Grants),Business & Skills Group - Enterprise Directorate,BERR SFLG PAYMENT TO LENDERS,1028101,-3318.75
"Department for Business, Innovation and Skills","Department for Business, Innovation and Skills",29/07/2011,Recovery of Loan Guarantees (Classed as Capital Grants),Business & Skills Group - Enterprise Directorate,EFG PAYMENTS,1028104,-5311.68
"Department for Business, Innovation and Skills","Department for Business, Innovation and Skills",29/07/2011,Recovery of Loan Guarantees (Classed as Capital Grants),Business & Skills Group - Enterprise Directorate,EFG PAYMENTS,1028107,-9288.83
"Department for Business, Innovation and Skills","Department for Business, Innovation and Skills",01/07/2011,Other Overseas Travel & Subsistence,"Legal, People & Communications Group - HRCM - Human Resources and Change Management Directorate",FOREIGN AND COMMONWEALTH OFFICE (FCO),1028700,16
"Department for Business, Innovation and Skills","Department for Business, Innovation and Skills",01/07/2011,Other Overseas Travel & Subsistence,"Legal, People & Communications Group - HRCM - Human Resources and Change Management Directorate",FOREIGN AND COMMONWEALTH OFFICE (FCO),1028701,13.34
"Department for Business, Innovation and Skills","Department for Business, Innovation and Skills",01/07/2011,Taxis Overseas,Ministerial and Parliamentary Support Team - Ministerial and Parliamentary Support Team,FOREIGN AND COMMONWEALTH OFFICE (FCO),1028703,100
"Department for Business, Innovation and Skills","Department for Business, Innovation and Skills",01/07/2011,Taxis Overseas,Ministerial and Parliamentary Support Team - Ministerial and Parliamentary Support Team,FOREIGN AND COMMONWEALTH OFFICE (FCO),1028703,9.42
"Department for Business, Innovation and Skills","Department for Business, Innovation and Skills",01/07/2011,Entertaining Overseas (Programme),Knowledge and Innovation Group - Research Base,FOREIGN AND COMMONWEALTH OFFICE (FCO),1028708,1179.02
"Department for Business, Innovation and Skills","Department for Business, Innovation and Skills",01/07/2011,Grants - Current - Other,Knowledge and Innovation Group - Research Base,FOREIGN AND COMMONWEALTH OFFICE (FCO),1028709,1.52
"Department for Business, Innovation and Skills","Department for Business, Innovation and Skills",01/07/2011,Grants - Current - Other,Knowledge and Innovation Group - Research Base,FOREIGN AND COMMONWEALTH OFFICE (FCO),1028711,12.16
"Department for Business, Innovation and Skills","Department for Business, Innovation and Skills",01/07/2011,Grants - Current - Other,Knowledge and Innovation Group - Research Base,FOREIGN AND COMMONWEALTH OFFICE (FCO),1028712,53.5
"Department for Business, Innovation and Skills","Department for Business, Innovation and Skills",01/07/2011,Grants - Current - Other,Knowledge and Innovation Group - Research Base,FOREIGN AND COMMONWEALTH OFFICE (FCO),1028716,48.02
"Department for Business, Innovation and Skills","Department for Business, Innovation and Skills",01/07/2011,Grants - Current - Other,Knowledge and Innovation Group - Research Base,FOREIGN AND COMMONWEALTH OFFICE (FCO),1028718,252.03
"Department for Business, Innovation and Skills","Department for Business, Innovation and Skills",13/07/2011,Interpreters,Market and Frameworks Group - Europe and World Trade Directorates,BRITISH EMBASSY,1028965,374.76
"Department for Business, Innovation and Skills","Department for Business, Innovation and Skills",11/07/2011,Hotels Overseas,Knowledge and Innovation Group - Research Base,FOREIGN AND COMMONWEALTH OFFICE (FCO),1029072,2465.38
"Department for Business, Innovation and Skills","Department for Business, Innovation and Skills",11/07/2011,Air Fares Overseas,Ministerial and Parliamentary Support Team - Ministerial and Parliamentary Support Team,FOREIGN AND COMMONWEALTH OFFICE (FCO),1029076,341
"Department for Business, Innovation and Skills","Department for Business, Innovation and Skills",11/07/2011,Air Fares Overseas,Ministerial and Parliamentary Support Team - Ministerial and Parliamentary Support Team,FOREIGN AND COMMONWEALTH OFFICE (FCO),1029076,6.42
"Department for Business, Innovation and Skills","Department for Business, Innovation and Skills",14/07/2011,Estates Consultancy and Professional Services,Shareholder Executive - Shareholder Executive,HYPERLINK SERVICES LTD,1029135,-900
"Department for Business, Innovation and Skills","Department for Business, Innovation and Skills",14/07/2011,Estates Consultancy and Professional Services,Shareholder Executive - Shareholder Executive,HYPERLINK SERVICES LTD,1029136,-900
"Department for Business, Innovation and Skills","Department for Business, Innovation and Skills",06/07/2011,Car Hire and Leasing,Business & Skills Group - USG Admin,ARVAL (UK) LTD,1029180,112.37
"Department for Business, Innovation and Skills","Department for Business, Innovation and Skills",20/07/2011,Staff Transfer/Detached Duty Costs,Market and Frameworks Group - Export Control Organisation,ARVAL (UK) LTD,1029189,71.7
"Department for Business, Innovation and Skills","Department for Business, Innovation and Skills",07/07/2011,Car Hire and Leasing,Business & Skills Group - USG Admin,ARVAL (UK) LTD,1029190,89.23
"Department for Business, Innovation and Skills","Department for Business, Innovation and Skills",15/07/2011,International Subscriptions,Knowledge and Innovation Group - Higher Education,EUROPEAN UNIVERSITY INSTITUTE (EUI),1029411,1774678.8
"Department for Business, Innovation and Skills","Department for Business, Innovation and Skills",13/07/2011,Static Line Rental,"Legal, People & Communications Group - Legal Services",DAISY COMMUNICATIONS LTD,1029434,35.99
"Department for Business, Innovation and Skills","Department for Business, Innovation and Skills",15/07/2011,Air Fares Overseas,Knowledge and Innovation Group - Government Office For Science,FOREIGN AND COMMONWEALTH OFFICE (FCO),1029501,298.6
"Department for Business, Innovation and Skills","Department for Business, Innovation and Skills",15/07/2011,Taxis- Overseas (Programme),Knowledge and Innovation Group - Research Base,FOREIGN AND COMMONWEALTH OFFICE (FCO),1029502,3117.61
"Department for Business, Innovation and Skills","Department for Business, Innovation and Skills",15/07/2011,Grants - Current - Other,Knowledge and Innovation Group - Research Base,FOREIGN AND COMMONWEALTH OFFICE (FCO),1029503,98.63
"Department for Business, Innovation and Skills","Department for Business, Innovation and Skills",15/07/2011,Other Overseas Travel & Subsistence,"Legal, People & Communications Group - HRCM - Human Resources and Change Management Directorate",FOREIGN AND COMMONWEALTH OFFICE (FCO),1029507,365.28
"Department for Business, Innovation and Skills","Department for Business, Innovation and Skills",05/07/2011,Hire of Agency Staff (Clerical/Secretariat/Other),"Legal, People & Communications Group - Communications Directorate",ADECCO UK LTD,1029573,650.05
"Department for Business, Innovation and Skills","Department for Business, Innovation and Skills",15/07/2011,Other Overseas Travel & Subsistence,Ministerial and Parliamentary Support Team - Ministerial and Parliamentary Support Team,FCO SERVICES,1029584,249.6
"Department for Business, Innovation and Skills","Department for Business, Innovation and Skills",15/07/2011,Other Overseas Travel & Subsistence,Ministerial and Parliamentary Support Team - Ministerial and Parliamentary Support Team,FCO SERVICES,1029585,249.6
"Department for Business, Innovation and Skills","Department for Business, Innovation and Skills",01/07/2011,Telecommunications,ESBR - Better Regulation Executive (BRE),VODAFONE LTD,1029717,4.21
"Department for Business, Innovation and Skills","Department for Business, Innovation and Skills",08/07/2011,Mobile Call Charges,Market and Frameworks Group - Consumer and Competition Policy,VODAFONE LTD,1029719,32.51
"Department for Business, Innovation and Skills","Department for Business, Innovation and Skills",01/07/2011,Grant in Aid - Current -Other,Knowledge and Innovation Group - Learners,STUDENT LOANS  CO LTD (INVEST TO SAVE),1029760,512518.25
"Department for Business, Innovation and Skills","Department for Business, Innovation and Skills",01/07/2011,Grant in Aid - Current -Other,Knowledge and Innovation Group - Learners,STUDENT LOANS  CO LTD (INVEST TO SAVE),1029760,7335559.92
"Department for Business, Innovation and Skills","Department for Business, Innovation and Skills",04/07/2011,GTN Services,Finance & Commercial Group - Commercial Directorate,CABLE & WIRELESS COMMUNICATIONS PLC,1029801,500
"Department for Business, Innovation and Skills","Department for Business, Innovation and Skills",07/07/2011,Grants - Current - Other,Knowledge and Innovation Group - Research Base,BIOTECHNOLOGY AND BIOLOGICAL SCIENCE RESEARCH COUNCIL,1029814,2700000
"Department for Business, Innovation and Skills","Department for Business, Innovation and Skills",21/07/2011,ICT Maintenance & Upkeep,Finance & Commercial Group - Commercial Directorate,SIEMENS ENTERPRISE COMMUNICATIONS LIMITED,1029820,5097.78
"Department for Business, Innovation and Skills","Department for Business, Innovation and Skills",07/07/2011,Grant in Aid - Current -Other,Knowledge and Innovation Group - Research Base,SCIENCE AND TECHNOLOGY FACILITIES COUNCIL,1029822,10000000
"Department for Business, Innovation and Skills","Department for Business, Innovation and Skills",07/07/2011,Grant in Aid - Current -Other,Knowledge and Innovation Group - Research Base,ARTS AND HUMANITIES RESEARCH COUNCIL,1029826,660045
"Department for Business, Innovation and Skills","Department for Business, Innovation and Skills",07/07/2011,Grant in Aid - Current -Other,Knowledge and Innovation Group - Research Base,BIOTECHNOLOGY AND BIOLOGICAL SCIENCE RESEARCH COUNCIL,1029829,20000000
"Department for Business, Innovation and Skills","Department for Business, Innovation and Skills",07/07/2011,Grant in Aid - Current -Other,Knowledge and Innovation Group - Research Base,ENGINEERING AND PHYSICAL SCIENCES RESEARCH COUNCIL,1029831,30000000
"Department for Business, Innovation and Skills","Department for Business, Innovation and Skills",07/07/2011,Grant in Aid - Current -Other,Knowledge and Innovation Group - Research Base,ECONOMIC AND SOCIAL RESEARCH COUNCIL ESRC,1029832,12000000
"Department for Business, Innovation and Skills","Department for Business, Innovation and Skills",07/07/2011,Grant in Aid - Current -Other,Knowledge and Innovation Group - Research Base,NATURAL ENVIRONMENT RESEARCH COUNCIL,1029833,15000000
"Department for Business, Innovation and Skills","Department for Business, Innovation and Skills",05/07/2011,Grants - Current - Other,Knowledge and Innovation Group - Office of the Knowledge & Innovation DG,UK SPACE AGENCY,1029834,1300000
"Department for Business, Innovation and Skills","Department for Business, Innovation and Skills",04/07/2011,Grant in Aid - Current -Other,Knowledge and Innovation Group - Research Base,MEDICAL RESEARCH COUNCIL,1029836,106100000
"Department for Business, Innovation and Skills","Department for Business, Innovation and Skills",21/07/2011,Interpreters,Knowledge and Innovation Group - Government Office For Science,FOREIGN AND COMMONWEALTH OFFICE (FCO),1029837,816.23
"Department for Business, Innovation and Skills","Department for Business, Innovation and Skills",21/07/2011,Grants - Current - Other,Knowledge and Innovation Group - Research Base,FOREIGN AND COMMONWEALTH OFFICE (FCO),1029838,64.8
"Department for Business, Innovation and Skills","Department for Business, Innovation and Skills",21/07/2011,Grants - Current - Other,Knowledge and Innovation Group - Research Base,FOREIGN AND COMMONWEALTH OFFICE (FCO),1029839,1696.19
"Department for Business, Innovation and Skills","Department for Business, Innovation and Skills",21/07/2011,Grants - Current - Other,Knowledge and Innovation Group - Research Base,FOREIGN AND COMMONWEALTH OFFICE (FCO),1029840,480.59
"Department for Business, Innovation and Skills","Department for Business, Innovation and Skills",21/07/2011,Grants - Current - Other,Knowledge and Innovation Group - Research Base,FOREIGN AND COMMONWEALTH OFFICE (FCO),1029841,612.65
"Department for Business, Innovation and Skills","Department for Business, Innovation and Skills",21/07/2011,Grants - Current - Other,Knowledge and Innovation Group - Research Base,FOREIGN AND COMMONWEALTH OFFICE (FCO),1029845,159.83
"Department for Business, Innovation and Skills","Department for Business, Innovation and Skills",21/07/2011,Grants - Current - Other,Knowledge and Innovation Group - Research Base,FOREIGN AND COMMONWEALTH OFFICE (FCO),1029846,180.83
"Department for Business, Innovation and Skills","Department for Business, Innovation and Skills",21/07/2011,Grants - Current - Other,Knowledge and Innovation Group - Research Base,FOREIGN AND COMMONWEALTH OFFICE (FCO),1029848,916.63
"Department for Business, Innovation and Skills","Department for Business, Innovation and Skills",05/07/2011,Hire of Agency Staff (Clerical/Secretariat/Other),"Legal, People & Communications Group - Communications Directorate",ADECCO UK LTD,1029854,633.24
"Department for Business, Innovation and Skills","Department for Business, Innovation and Skills",21/07/2011,Other Overseas Travel & Subsistence,"Legal, People & Communications Group - HRCM - Human Resources and Change Management Directorate",FOREIGN AND COMMONWEALTH OFFICE (FCO),1029866,1650.46
"Department for Business, Innovation and Skills","Department for Business, Innovation and Skills",21/07/2011,Other Overseas Travel & Subsistence,Ministerial and Parliamentary Support Team - Ministerial and Parliamentary Support Team,FOREIGN AND COMMONWEALTH OFFICE (FCO),1029867,130.16
"Department for Business, Innovation and Skills","Department for Business, Innovation and Skills",04/07/2011,Hire of Agency Staff (Clerical/Secretariat/Other),Finance & Commercial Group - Commercial Directorate,ADECCO UK LTD,1029872,483.94
"Department for Business, Innovation and Skills","Department for Business, Innovation and Skills",05/07/2011,Hire of Agency Staff (Clerical/Secretariat/Other),Finance & Commercial Group - Commercial Directorate,ADECCO UK LTD,1029887,521.5
"Department for Business, Innovation and Skills","Department for Business, Innovation and Skills",05/07/2011,Hire of Agency Staff (Clerical/Secretariat/Other),"Legal, People & Communications Group - Communications Directorate",ADECCO UK LTD,1029889,519.74
"Department for Business, Innovation and Skills","Department for Business, Innovation and Skills",01/07/2011,Mobile Phones,Business & Skills Group - Advanced Manufacturing Services,VODAFONE LTD,1029890,60.04
"Department for Business, Innovation and Skills","Department for Business, Innovation and Skills",05/07/2011,Hire of Agency Staff (Clerical/Secretariat/Other),Finance & Commercial Group - Commercial Directorate,ADECCO UK LTD,1029901,521.5
"Department for Business, Innovation and Skills","Department for Business, Innovation and Skills",01/07/2011,Hire of Agency Staff (Clerical/Secretariat/Other),Finance & Commercial Group - Commercial Directorate,ADECCO UK LTD,1029905,501.4
"Department for Business, Innovation and Skills","Department for Business, Innovation and Skills",05/07/2011,Hire of Agency Staff (Clerical/Secretariat/Other),Finance & Commercial Group - Commercial Directorate,ADECCO UK LTD,1029915,483.01
"Department for Business, Innovation and Skills","Department for Business, Innovation and Skills",01/07/2011,Hire of Agency Staff (Clerical/Secretariat/Other),Finance & Commercial Group - Commercial Directorate,ADECCO UK LTD,1029950,423.72
"Department for Business, Innovation and Skills","Department for Business, Innovation and Skills",04/07/2011,Electricity,Finance & Commercial Group - Commercial Directorate,STOCKTON BOROUGH COUNCIL,1029955,863.54
"Department for Business, Innovation and Skills","Department for Business, Innovation and Skills",05/07/2011,Standard Desktop Plus Service (PFI),Finance & Commercial Group - Commercial Directorate,FUJITSU SERVICES LTD,1029961,2249.4
"Department for Business, Innovation and Skills","Department for Business, Innovation and Skills",01/07/2011,Standard Desktop Plus Service (PFI),Finance & Commercial Group - Commercial Directorate,FUJITSU SERVICES LTD,1029966,1932
"Department for Business, Innovation and Skills","Department for Business, Innovation and Skills",06/07/2011,ICT Maintenance & Upkeep (PFI),Finance & Commercial Group - Commercial Directorate,FUJITSU SERVICES LTD,1029967,807.36
"Department for Business, Innovation and Skills","Department for Business, Innovation and Skills",01/07/2011,Hire of Agency Staff (Clerical/Secretariat/Other),Finance & Commercial Group - Commercial Directorate,ADECCO UK LTD,1029971,521.5
"Department for Business, Innovation and Skills","Department for Business, Innovation and Skills",01/07/2011,Hire of Agency Staff (Clerical/Secretariat/Other),Finance & Commercial Group - Commercial Directorate,ADECCO UK LTD,1029972,501.4
"Department for Business, Innovation and Skills","Department for Business, Innovation and Skills",06/07/2011,Publications,"Legal, People & Communications Group - Legal Services",THE STATIONERY OFFICE LTD,1030065,17.43
"Department for Business, Innovation and Skills","Department for Business, Innovation and Skills",06/07/2011,Hire of Reprographic Equipment,Office of Manpower Economics - Office of Manpower Economics,RICOH UK LTD,1030067,1701.33
"Department for Business, Innovation and Skills","Department for Business, Innovation and Skills",01/07/2011,Hire of Agency Staff (Clerical/Secretariat/Other),"Legal, People & Communications Group - Innovation Capability Team",ADECCO UK LTD,1030072,411.1
"Department for Business, Innovation and Skills","Department for Business, Innovation and Skills",04/07/2011,Publications,"Legal, People & Communications Group - Legal Services",LEXISNEXIS (A DIVISION OF REED ELSEVIER (UK) lTD),1030077,325.9
"Department for Business, Innovation and Skills","Department for Business, Innovation and Skills",04/07/2011,Publications,"Legal, People & Communications Group - Legal Services",LEXISNEXIS (A DIVISION OF REED ELSEVIER (UK) lTD),1030079,702.45
"Department for Business, Innovation and Skills","Department for Business, Innovation and Skills",04/07/2011,Hire of Agency Staff (Clerical/Secretariat/Other),Finance & Commercial Group - Commercial Directorate,ADECCO UK LTD,1030083,521.5
"Department for Business, Innovation and Skills","Department for Business, Innovation and Skills",06/07/2011,Hire of Agency Staff (Professional/Management),"Legal, People & Communications Group - Communications Directorate",COI COMMUNICATIONS,1030146,3780
"Department for Business, Innovation and Skills","Department for Business, Innovation and Skills",01/07/2011,Non Grant-in-Aid Funding of Bodies (Departmental and Non-Departmental),Business & Skills Group - Further Education & Skills Investment,SKILLS FUNDING AGENCY,1030150,262467000
"Department for Business, Innovation and Skills","Department for Business, Innovation and Skills",07/07/2011,Project Management Costs (Programme),Market and Frameworks Group - Labour Market,Payment Under the Icelandic Trawlermen Compensation Scheme - Name Withheld,1030152,2069.5
"Department for Business, Innovation and Skills","Department for Business, Innovation and Skills",07/07/2011,Project Management Costs (Programme),Market and Frameworks Group - Labour Market,Payment Under the Icelandic Trawlermen Compensation Scheme - Name Withheld,1030152,5000
"Department for Business, Innovation and Skills","Department for Business, Innovation and Skills",07/07/2011,Project Management Costs (Programme),Market and Frameworks Group - Labour Market,Payment Under the Icelandic Trawlermen Compensation Scheme - Name Withheld,1030152,217.66
"Department for Business, Innovation and Skills","Department for Business, Innovation and Skills",01/07/2011,Hire of Agency Staff (Clerical/Secretariat/Other),Finance & Commercial Group - Commercial Directorate,ADECCO UK LTD,1030153,197.02
"Department for Business, Innovation and Skills","Department for Business, Innovation and Skills",01/07/2011,Hire of Agency Staff (Clerical/Secretariat/Other),Finance & Commercial Group - Commercial Directorate,ADECCO UK LTD,1030159,400.12
"Department for Business, Innovation and Skills","Department for Business, Innovation and Skills",07/07/2011,Hire of Agency Staff (Clerical/Secretariat/Other),"Legal, People & Communications Group - Innovation Capability Team",ADECCO UK LTD,1030175,740.04
"Department for Business, Innovation and Skills","Department for Business, Innovation and Skills",05/07/2011,Hire of Agency Staff (Clerical/Secretariat/Other),"Legal, People & Communications Group - Communications Directorate",ADECCO UK LTD,1030183,223.68
"Department for Business, Innovation and Skills","Department for Business, Innovation and Skills",05/07/2011,Hire of Agency Staff (Clerical/Secretariat/Other),"Legal, People & Communications Group - Communications Directorate",ADECCO UK LTD,1030183,426.37
"Department for Business, Innovation and Skills","Department for Business, Innovation and Skills",29/07/2011,Car Hire and Leasing (Programme),Market and Frameworks Group - Export Control Organisation,ARVAL (UK) LTD,1030185,857.4
"Department for Business, Innovation and Skills","Department for Business, Innovation and Skills",01/07/2011,Hire of Agency Staff (Clerical/Secretariat/Other),Ministerial and Parliamentary Support Team - Ministerial and Parliamentary Support Team,ADECCO UK LTD,1030186,1041.13
"Department for Business, Innovation and Skills","Department for Business, Innovation and Skills",01/07/2011,Non Grant-in-Aid Funding of Bodies (Departmental and Non-Departmental),Market and Frameworks Group - Labour Market,ACAS,1030188,3700000
"Department for Business, Innovation and Skills","Department for Business, Innovation and Skills",11/07/2011,Car Hire and Leasing,Business & Skills Group - Economic Development Directorate,ARVAL (UK) LTD,1030189,95.1
"Department for Business, Innovation and Skills","Department for Business, Innovation and Skills",11/07/2011,Car Hire and Leasing (Programme),Shareholder Executive - Shareholder Executive,ARVAL (UK) LTD,1030191,131.25
"Department for Business, Innovation and Skills","Department for Business, Innovation and Skills",05/07/2011,Car Hire and Leasing,Office of Manpower Economics - Office of Manpower Economics,ARVAL (UK) LTD,1030194,72.86
"Department for Business, Innovation and Skills","Department for Business, Innovation and Skills",05/07/2011,Car Hire and Leasing,Office of Manpower Economics - Office of Manpower Economics,ARVAL (UK) LTD,1030194,51.43
"Department for Business, Innovation and Skills","Department for Business, Innovation and Skills",11/07/2011,Car Hire and Leasing,Business & Skills Group - Economic Development Directorate,ARVAL (UK) LTD,1030195,294.88
"Department for Business, Innovation and Skills","Department for Business, Innovation and Skills",07/07/2011,Car Hire and Leasing,Business & Skills Group - Information Economy,ARVAL (UK) LTD,1030196,78.6
"Department for Business, Innovation and Skills","Department for Business, Innovation and Skills",04/07/2011,Hire of Agency Staff (Clerical/Secretariat/Other),Finance & Commercial Group - Commercial Directorate,ADECCO UK LTD,1030204,494.41
"Department for Business, Innovation and Skills","Department for Business, Innovation and Skills",04/07/2011,Hire of Agency Staff (Clerical/Secretariat/Other),Finance & Commercial Group - Commercial Directorate,ADECCO UK LTD,1030206,386.5
"Department for Business, Innovation and Skills","Department for Business, Innovation and Skills",08/07/2011,Car Hire and Leasing,Business & Skills Group - Advanced Manufacturing Services,ARVAL (UK) LTD,1030210,54.54
"Department for Business, Innovation and Skills","Department for Business, Innovation and Skills",05/07/2011,Standard Desktop Plus Services,Finance & Commercial Group - Commercial Directorate,CAPGEMINI UK plc,1030214,330360.77
"Department for Business, Innovation and Skills","Department for Business, Innovation and Skills",07/07/2011,Car Hire and Leasing,"Legal, People & Communications Group - Legal Services",ARVAL (UK) LTD,1030215,65.88
"Department for Business, Innovation and Skills","Department for Business, Innovation and Skills",06/07/2011,ICT Infrastructure Specific Service,Finance & Commercial Group - Commercial Directorate,XMA LTD,1030223,3332.28
"Department for Business, Innovation and Skills","Department for Business, Innovation and Skills",01/07/2011,Other Telephone Costs,Shareholder Executive - Shareholder Executive,GENESYS CONFERENCING EUROPE,1030240,126.6
"Department for Business, Innovation and Skills","Department for Business, Innovation and Skills",01/07/2011,Research & Development Expenditure (Programme),Knowledge and Innovation Group - Government Office For Science,EUROPE DRIVER SERVICE,1030243,235.39
"Department for Business, Innovation and Skills","Department for Business, Innovation and Skills",19/07/2011,Car Hire and Leasing (Programme),Market and Frameworks Group - Export Control Organisation,ARVAL (UK) LTD,1030244,-35.64
"Department for Business, Innovation and Skills","Department for Business, Innovation and Skills",01/07/2011,Research & Development Expenditure (Programme),Knowledge and Innovation Group - Government Office For Science,ERASMUS UNIVERSITY ROTTERDAM,1030250,3051.3
"Department for Business, Innovation and Skills","Department for Business, Innovation and Skills",01/07/2011,Catering Services,Office of Manpower Economics - Office of Manpower Economics,COMPETITION COMMISSION,1030255,1414.54
"Department for Business, Innovation and Skills","Department for Business, Innovation and Skills",07/07/2011,ICT Infrastructure Specific Service,Finance & Commercial Group - Commercial Directorate,PARITY RESOURCES LTD,1030263,1312
"Department for Business, Innovation and Skills","Department for Business, Innovation and Skills",07/07/2011,ICT Infrastructure Specific Service,Finance & Commercial Group - Commercial Directorate,PARITY RESOURCES LTD,1030263,8548
"Department for Business, Innovation and Skills","Department for Business, Innovation and Skills",12/07/2011,Hotels,Business & Skills Group - Advanced Manufacturing Services,HAMPSHIRE COUNTY COUNCIL,1030269,273.46
"Department for Business, Innovation and Skills","Department for Business, Innovation and Skills",04/07/2011,Project Management Costs (Programme),Knowledge and Innovation Group - Research Base,CARDIFF UNIVERSITY,1030272,6000
"Department for Business, Innovation and Skills","Department for Business, Innovation and Skills",12/07/2011,Maintenance of Office Machinery,"Legal, People & Communications Group - Legal Services",A V NICHE (RECORDING SYSTEMS) LTD,1030273,68
"Department for Business, Innovation and Skills","Department for Business, Innovation and Skills",12/07/2011,Maintenance of Office Machinery,"Legal, People & Communications Group - Legal Services",A V NICHE (RECORDING SYSTEMS) LTD,1030273,1.62
"Department for Business, Innovation and Skills","Department for Business, Innovation and Skills",07/07/2011,Grants - Current - Other,Knowledge and Innovation Group - Office of the Knowledge & Innovation DG,US-UK FULBRIGHT COMMISSION,1030274,55000
"Department for Business, Innovation and Skills","Department for Business, Innovation and Skills",05/07/2011,ICT Infrastructure Specific Service,Finance & Commercial Group - Commercial Directorate,EDUSERV TECHNOLOGIES LTD,1030276,13510.83
"Department for Business, Innovation and Skills","Department for Business, Innovation and Skills",01/07/2011,Bank Charges - Commercial Banks (Programme),Business & Skills Group - Enterprise Directorate,LLOYDS TSB BANK PLC,1030283,20.2
"Department for Business, Innovation and Skills","Department for Business, Innovation and Skills",11/07/2011,Buildings Insurance,Finance & Commercial Group - Commercial Directorate,CUSHMAN & WAKEFIELD LLP,1030288,2619.36
"Department for Business, Innovation and Skills","Department for Business, Innovation and Skills",06/07/2011,Hire of Agency Staff (Clerical/Secretariat/Other),Knowledge and Innovation Group - Innovation,ADECCO UK LTD,1030291,619.98
"Department for Business, Innovation and Skills","Department for Business, Innovation and Skills",05/07/2011,Publications,"Legal, People & Communications Group - Legal Services",BLACKWELL UK LTD,1030292,52
"Department for Business, Innovation and Skills","Department for Business, Innovation and Skills",11/07/2011,Buildings Insurance,Finance & Commercial Group - Commercial Directorate,CUSHMAN & WAKEFIELD LLP,1030298,41772.28
"Department for Business, Innovation and Skills","Department for Business, Innovation and Skills",11/07/2011,Buildings Insurance,Finance & Commercial Group - Commercial Directorate,CUSHMAN & WAKEFIELD LLP,1030299,35767.4
"Department for Business, Innovation and Skills","Department for Business, Innovation and Skills",11/07/2011,Buildings Insurance,Finance & Commercial Group - Commercial Directorate,CUSHMAN & WAKEFIELD LLP,1030300,1854.95
"Department for Business, Innovation and Skills","Department for Business, Innovation and Skills",11/07/2011,Buildings Insurance,Finance & Commercial Group - Commercial Directorate,CUSHMAN & WAKEFIELD LLP,1030301,2242.82
"Department for Business, Innovation and Skills","Department for Business, Innovation and Skills",11/07/2011,Buildings Insurance,Finance & Commercial Group - Commercial Directorate,CUSHMAN & WAKEFIELD LLP,1030302,29581.91
"Department for Business, Innovation and Skills","Department for Business, Innovation and Skills",01/07/2011,Professional Training,Shareholder Executive - Shareholder Executive,DOD'S PARLIAMENTARY COMMUNICATIONS LTD (WESTMINSTER EXPLAINED),1030319,480
"Department for Business, Innovation and Skills","Department for Business, Innovation and Skills",01/07/2011,Professional Training,Shareholder Executive - Shareholder Executive,DOD'S PARLIAMENTARY COMMUNICATIONS LTD (WESTMINSTER EXPLAINED),1030319,480
"Department for Business, Innovation and Skills","Department for Business, Innovation and Skills",06/07/2011,Other Training Costs,Knowledge and Innovation Group - Government Office For Science,CHATHAM HOUSE ENTERPRISES LTD,1030337,80
"Department for Business, Innovation and Skills","Department for Business, Innovation and Skills",06/07/2011,Other Training Costs,Knowledge and Innovation Group - Government Office For Science,CHATHAM HOUSE ENTERPRISES LTD,1030337,495
"Department for Business, Innovation and Skills","Department for Business, Innovation and Skills",04/07/2011,Enforcement,Market and Frameworks Group - Labour Market,HM REVENUE & CUSTOMS,1030346,551891
"Department for Business, Innovation and Skills","Department for Business, Innovation and Skills",04/07/2011,Hire of Agency Staff (Clerical/Secretariat/Other),Finance & Commercial Group - Commercial Directorate,BROOK STREET (UK) LTD,1030360,825.12
"Department for Business, Innovation and Skills","Department for Business, Innovation and Skills",01/07/2011,Mobile Phones,Business & Skills Group - Advanced Manufacturing Services,BRITISH TELECOMMUNICATIONS plc (BT),1030363,114.41
"Department for Business, Innovation and Skills","Department for Business, Innovation and Skills",01/07/2011,Standard Desktop Plus Service (PFI),Finance & Commercial Group - Commercial Directorate,FUJITSU SERVICES LTD,1030373,314.5
"Department for Business, Innovation and Skills","Department for Business, Innovation and Skills",04/07/2011,Other Staff Costs (Programme),"Legal, People & Communications Group - Communications Directorate",COI COMMUNICATIONS,1030374,6616
"Department for Business, Innovation and Skills","Department for Business, Innovation and Skills",04/07/2011,Public Relations & Marketing Advice & Services,Business & Skills Group - Advanced Manufacturing Services,COI COMMUNICATIONS,1030376,5000
"Department for Business, Innovation and Skills","Department for Business, Innovation and Skills",06/07/2011,Storage and Distribution,Finance & Commercial Group - Commercial Directorate,DRAGON FIRE & SECURITY SYSTEMS LTD,1030380,54.4
"Department for Business, Innovation and Skills","Department for Business, Innovation and Skills",01/07/2011,Standard Desktop Services (PFI),Finance & Commercial Group - Commercial Directorate,FUJITSU SERVICES LTD,1030389,101.92
"Department for Business, Innovation and Skills","Department for Business, Innovation and Skills",01/07/2011,Standard Desktop Plus Service (PFI),Finance & Commercial Group - Commercial Directorate,FUJITSU SERVICES LTD,1030392,8.66
"Department for Business, Innovation and Skills","Department for Business, Innovation and Skills",29/07/2011,Standard Desktop Plus Service (PFI),Finance & Commercial Group - Commercial Directorate,FUJITSU SERVICES LTD,1030398,46.04
"Department for Business, Innovation and Skills","Department for Business, Innovation and Skills",01/07/2011,Standard Desktop Plus Service (PFI),Finance & Commercial Group - Commercial Directorate,FUJITSU SERVICES LTD,1030399,127.83
"Department for Business, Innovation and Skills","Department for Business, Innovation and Skills",08/07/2011,Standard Desktop Plus Service (PFI),Finance & Commercial Group - Commercial Directorate,FUJITSU SERVICES LTD,1030400,28290
"Department for Business, Innovation and Skills","Department for Business, Innovation and Skills",01/07/2011,Standard Desktop Plus Service (PFI),Finance & Commercial Group - Commercial Directorate,FUJITSU SERVICES LTD,1030401,499.3
"Department for Business, Innovation and Skills","Department for Business, Innovation and Skills",01/07/2011,Criminal Law and Prosecution Work,"Legal, People & Communications Group - Legal Services",CARPE-DATUM,1030402,2352
"Department for Business, Innovation and Skills","Department for Business, Innovation and Skills",01/07/2011,ICT Business Specific Application Services (PFI),Finance & Commercial Group - Commercial Directorate,FUJITSU SERVICES LTD,1030403,122.07
"Department for Business, Innovation and Skills","Department for Business, Innovation and Skills",01/07/2011,Criminal Law and Prosecution Work,"Legal, People & Communications Group - Legal Services",CARPE-DATUM,1030404,3028.2
"Department for Business, Innovation and Skills","Department for Business, Innovation and Skills",01/07/2011,ICT Infrastructure Specific Service (PFI),Finance & Commercial Group - Commercial Directorate,FUJITSU SERVICES LTD,1030405,731.1
"Department for Business, Innovation and Skills","Department for Business, Innovation and Skills",01/07/2011,Criminal Law and Prosecution Work,"Legal, People & Communications Group - Legal Services",CARPE-DATUM,1030406,3175.2
"Department for Business, Innovation and Skills","Department for Business, Innovation and Skills",01/07/2011,ICT Business Specific Application Services (PFI),Finance & Commercial Group - Commercial Directorate,FUJITSU SERVICES LTD,1030407,7313.37
"Department for Business, Innovation and Skills","Department for Business, Innovation and Skills",01/07/2011,Standard Desktop Plus Service (PFI),Finance & Commercial Group - Commercial Directorate,FUJITSU SERVICES LTD,1030408,4094.26
"Department for Business, Innovation and Skills","Department for Business, Innovation and Skills",01/07/2011,Standard Desktop Plus Service (PFI),Finance & Commercial Group - Commercial Directorate,FUJITSU SERVICES LTD,1030408,1376.42
"Department for Business, Innovation and Skills","Department for Business, Innovation and Skills",08/07/2011,Standard Desktop Plus Service (PFI),Finance & Commercial Group - Commercial Directorate,FUJITSU SERVICES LTD,1030409,110.34
"Department for Business, Innovation and Skills","Department for Business, Innovation and Skills",01/07/2011,Standard Desktop Plus Service (PFI),Finance & Commercial Group - Commercial Directorate,FUJITSU SERVICES LTD,1030410,4094.26
"Department for Business, Innovation and Skills","Department for Business, Innovation and Skills",07/07/2011,Standard Desktop Plus Service (PFI),Finance & Commercial Group - Commercial Directorate,FUJITSU SERVICES LTD,1030411,20025.47
"Department for Business, Innovation and Skills","Department for Business, Innovation and Skills",01/07/2011,Standard Desktop Plus Service (PFI),Finance & Commercial Group - Commercial Directorate,FUJITSU SERVICES LTD,1030412,702.42
"Department for Business, Innovation and Skills","Department for Business, Innovation and Skills",01/07/2011,Standard Desktop Plus Service (PFI),Finance & Commercial Group - Commercial Directorate,FUJITSU SERVICES LTD,1030413,954.05
"Department for Business, Innovation and Skills","Department for Business, Innovation and Skills",01/07/2011,Standard Desktop Plus Service (PFI),Finance & Commercial Group - Commercial Directorate,FUJITSU SERVICES LTD,1030414,182.62
"Department for Business, Innovation and Skills","Department for Business, Innovation and Skills",01/07/2011,Standard Desktop Plus Service (PFI),Finance & Commercial Group - Commercial Directorate,FUJITSU SERVICES LTD,1030415,6061.88
"Department for Business, Innovation and Skills","Department for Business, Innovation and Skills",01/07/2011,Grants - Current - Other,Knowledge and Innovation Group - Innovation,BRITISH STANDARDS INSTITUTION (BSI),1030418,1616
"Department for Business, Innovation and Skills","Department for Business, Innovation and Skills",01/07/2011,Standard Desktop Plus Service (PFI),Finance & Commercial Group - Commercial Directorate,FUJITSU SERVICES LTD,1030421,8.2
"Department for Business, Innovation and Skills","Department for Business, Innovation and Skills",01/07/2011,Standard Desktop Plus Service (PFI),Finance & Commercial Group - Commercial Directorate,FUJITSU SERVICES LTD,1030422,8.2
"Department for Business, Innovation and Skills","Department for Business, Innovation and Skills",01/07/2011,Standard Desktop Plus Service (PFI),Finance & Commercial Group - Commercial Directorate,FUJITSU SERVICES LTD,1030423,2082.14
"Department for Business, Innovation and Skills","Department for Business, Innovation and Skills",01/07/2011,Standard Desktop Plus Service (PFI),Finance & Commercial Group - Commercial Directorate,FUJITSU SERVICES LTD,1030424,8.2
"Department for Business, Innovation and Skills","Department for Business, Innovation and Skills",01/07/2011,Standard Desktop Plus Service (PFI),Finance & Commercial Group - Commercial Directorate,FUJITSU SERVICES LTD,1030425,797.1
"Department for Business, Innovation and Skills","Department for Business, Innovation and Skills",01/07/2011,Standard Desktop Plus Service (PFI),Finance & Commercial Group - Commercial Directorate,FUJITSU SERVICES LTD,1030426,1767.81
"Department for Business, Innovation and Skills","Department for Business, Innovation and Skills",05/07/2011,Standard Desktop Plus Service (PFI),Finance & Commercial Group - Commercial Directorate,FUJITSU SERVICES LTD,1030427,39
"Department for Business, Innovation and Skills","Department for Business, Innovation and Skills",01/07/2011,ICT Infrastructure Specific Service (PFI),Finance & Commercial Group - Commercial Directorate,FUJITSU SERVICES LTD,1030428,530.45
"Department for Business, Innovation and Skills","Department for Business, Innovation and Skills",01/07/2011,Research & Development Expenditure (Programme),Knowledge and Innovation Group - Government Office For Science,PROFESSOR DAVID THOMAS,1030429,5767.55
"Department for Business, Innovation and Skills","Department for Business, Innovation and Skills",08/07/2011,Air Fares  - Overseas (Programme),Knowledge and Innovation Group - Research Base,THE QUEENS UNIVERSITY OF BELFAST,1030430,7500
"Department for Business, Innovation and Skills","Department for Business, Innovation and Skills",08/07/2011,Air Fares  - Overseas (Programme),Knowledge and Innovation Group - Research Base,THE QUEENS UNIVERSITY OF BELFAST,1030430,114.24
"Department for Business, Innovation and Skills","Department for Business, Innovation and Skills",01/07/2011,Grants - Current - Other,Knowledge and Innovation Group - Innovation,BRITISH STANDARDS INSTITUTION (BSI),1030432,139603.51
"Department for Business, Innovation and Skills","Department for Business, Innovation and Skills",01/07/2011,Criminal Law and Prosecution Work,"Legal, People & Communications Group - Legal Services",HM LAND REGISTRY,1030434,132
"Department for Business, Innovation and Skills","Department for Business, Innovation and Skills",01/07/2011,Interest on Post Office Working Capital Loans,Shareholder Executive - Shareholder Executive,POST OFFICE LTD C/O ROYAL MAIL,1030435,-6814.73
"Department for Business, Innovation and Skills","Department for Business, Innovation and Skills",01/07/2011,Additions Post Office Ltd - Loans from Vote,Shareholder Executive - Shareholder Executive,POST OFFICE LTD C/O ROYAL MAIL,1030435,90000000
"Department for Business, Innovation and Skills","Department for Business, Innovation and Skills",28/07/2011,Other Overseas Travel & Subsistence,"Legal, People & Communications Group - HRCM - Human Resources and Change Management Directorate",FOREIGN AND COMMONWEALTH OFFICE (FCO),1030436,1427.42
"Department for Business, Innovation and Skills","Department for Business, Innovation and Skills",28/07/2011,Other Overseas Travel & Subsistence,"Legal, People & Communications Group - HRCM - Human Resources and Change Management Directorate",FOREIGN AND COMMONWEALTH OFFICE (FCO),1030437,89.21
"Department for Business, Innovation and Skills","Department for Business, Innovation and Skills",28/07/2011,Taxis Overseas,Ministerial and Parliamentary Support Team - Ministerial and Parliamentary Support Team,FOREIGN AND COMMONWEALTH OFFICE (FCO),1030438,25.69
"Department for Business, Innovation and Skills","Department for Business, Innovation and Skills",28/07/2011,Hotels Overseas,Ministerial and Parliamentary Support Team - Ministerial and Parliamentary Support Team,FOREIGN AND COMMONWEALTH OFFICE (FCO),1030439,510.77
"Department for Business, Innovation and Skills","Department for Business, Innovation and Skills",28/07/2011,Hotels Overseas,Ministerial and Parliamentary Support Team - Ministerial and Parliamentary Support Team,FOREIGN AND COMMONWEALTH OFFICE (FCO),1030440,264.23
"Department for Business, Innovation and Skills","Department for Business, Innovation and Skills",28/07/2011,Hotels Overseas,Ministerial and Parliamentary Support Team - Ministerial and Parliamentary Support Team,FOREIGN AND COMMONWEALTH OFFICE (FCO),1030440,102.79
"Department for Business, Innovation and Skills","Department for Business, Innovation and Skills",28/07/2011,Taxis Overseas,Ministerial and Parliamentary Support Team - Ministerial and Parliamentary Support Team,FOREIGN AND COMMONWEALTH OFFICE (FCO),1030441,25.69
"Department for Business, Innovation and Skills","Department for Business, Innovation and Skills",28/07/2011,Taxis Overseas,Ministerial and Parliamentary Support Team - Ministerial and Parliamentary Support Team,FOREIGN AND COMMONWEALTH OFFICE (FCO),1030442,865.58
"Department for Business, Innovation and Skills","Department for Business, Innovation and Skills",28/07/2011,Hotels Overseas,Ministerial and Parliamentary Support Team - Ministerial and Parliamentary Support Team,FOREIGN AND COMMONWEALTH OFFICE (FCO),1030442,15
"Department for Business, Innovation and Skills","Department for Business, Innovation and Skills",28/07/2011,Hotels Overseas,Ministerial and Parliamentary Support Team - Ministerial and Parliamentary Support Team,FOREIGN AND COMMONWEALTH OFFICE (FCO),1030442,477.21
"Department for Business, Innovation and Skills","Department for Business, Innovation and Skills",28/07/2011,Hotels Overseas,Ministerial and Parliamentary Support Team - Ministerial and Parliamentary Support Team,FOREIGN AND COMMONWEALTH OFFICE (FCO),1030442,8.12
"Department for Business, Innovation and Skills","Department for Business, Innovation and Skills",04/07/2011,Criminal Law and Prosecution Work,"Legal, People & Communications Group - Legal Services",R W GEORGE THRELFALL,1030444,72
"Department for Business, Innovation and Skills","Department for Business, Innovation and Skills",04/07/2011,Criminal Law and Prosecution Work,"Legal, People & Communications Group - Legal Services",IAN HALLIDAY,1030448,234
"Department for Business, Innovation and Skills","Department for Business, Innovation and Skills",04/07/2011,Criminal Law and Prosecution Work,"Legal, People & Communications Group - Legal Services",OLIVER WILLMOTT,1030449,713.39
"Department for Business, Innovation and Skills","Department for Business, Innovation and Skills",04/07/2011,Criminal Law and Prosecution Work,"Legal, People & Communications Group - Legal Services",OLIVER WILLMOTT,1030450,538.57
"Department for Business, Innovation and Skills","Department for Business, Innovation and Skills",04/07/2011,Criminal Law and Prosecution Work,"Legal, People & Communications Group - Legal Services",RICHARD FOSTER,1030451,201.85
"Department for Business, Innovation and Skills","Department for Business, Innovation and Skills",18/07/2011,Criminal Law and Prosecution Work,"Legal, People & Communications Group - Legal Services",ERIC JORDAN,1030452,118.7
"Department for Business, Innovation and Skills","Department for Business, Innovation and Skills",04/07/2011,Grant in Aid - Current -Other,Knowledge and Innovation Group - Innovation,THE TECHNOLOGY STRATEGY BOARD,1030453,27000000
"Department for Business, Innovation and Skills","Department for Business, Innovation and Skills",04/07/2011,Courier Services,Finance & Commercial Group - Commercial Directorate,TNT UK LTD,1030458,105.39
"Department for Business, Innovation and Skills","Department for Business, Innovation and Skills",04/07/2011,Outsourced Programme Management Services,Business & Skills Group - Further Education & Skills Investment,ARMADILLO STORAGE LTD,1030459,390.4
"Department for Business, Innovation and Skills","Department for Business, Innovation and Skills",04/07/2011,Outsourced Programme Management Services,Business & Skills Group - Further Education & Skills Investment,ARMADILLO STORAGE LTD,1030460,390.4
"Department for Business, Innovation and Skills","Department for Business, Innovation and Skills",04/07/2011,Other Accommodation Charges,Finance & Commercial Group - Commercial Directorate,RUSSAM GMS LTD,1030462,2756.25
"Department for Business, Innovation and Skills","Department for Business, Innovation and Skills",12/07/2011,Secure Documents Unit,Finance & Commercial Group - Commercial Directorate,COPIERTEC LTD,1030463,39.93
"Department for Business, Innovation and Skills","Department for Business, Innovation and Skills",04/07/2011,Hire of Agency Staff (Clerical/Secretariat/Other),Finance & Commercial Group - Commercial Directorate,ADECCO UK LTD,1030464,521.5
"Department for Business, Innovation and Skills","Department for Business, Innovation and Skills",04/07/2011,Publications,Market and Frameworks Group - Business Environment,JONES YARRELL LEADENHALL,1030465,37.4
"Department for Business, Innovation and Skills","Department for Business, Innovation and Skills",05/07/2011,Occupational Health Service,"Legal, People & Communications Group - HRCM - Human Resources and Change Management Directorate",MEDIGOLD HEALTH CONSULTANCY LTD,1030466,175.99
"Department for Business, Innovation and Skills","Department for Business, Innovation and Skills",05/07/2011,Occupational Health Service,"Legal, People & Communications Group - HRCM - Human Resources and Change Management Directorate",MEDIGOLD HEALTH CONSULTANCY LTD,1030466,2074.01
"Department for Business, Innovation and Skills","Department for Business, Innovation and Skills",04/07/2011,ICT Maintenance & Upkeep (PFI),Finance & Commercial Group - Commercial Directorate,FUJITSU SERVICES LTD,1030469,35582.18
"Department for Business, Innovation and Skills","Department for Business, Innovation and Skills",22/07/2011,Standard Desktop Services (PFI),Finance & Commercial Group - Commercial Directorate,FUJITSU SERVICES LTD,1030471,4408.5
"Department for Business, Innovation and Skills","Department for Business, Innovation and Skills",22/07/2011,Standard Desktop Services (PFI),Finance & Commercial Group - Commercial Directorate,FUJITSU SERVICES LTD,1030471,400.3
"Department for Business, Innovation and Skills","Department for Business, Innovation and Skills",04/07/2011,Catering Services,Shareholder Executive - Shareholder Executive,LEITHS AT THE CENTRE,1030472,660
"Department for Business, Innovation and Skills","Department for Business, Innovation and Skills",07/07/2011,Standard Desktop Plus Service (PFI),Finance & Commercial Group - Commercial Directorate,FUJITSU SERVICES LTD,1030473,62075.14
"Department for Business, Innovation and Skills","Department for Business, Innovation and Skills",05/07/2011,Standard Desktop Services (PFI),Finance & Commercial Group - Commercial Directorate,FUJITSU SERVICES LTD,1030474,258.96
"Department for Business, Innovation and Skills","Department for Business, Innovation and Skills",04/07/2011,Computer Equipment - Clearing,Finance & Commercial Group - Commercial Directorate,FUJITSU SERVICES LTD,1030475,2850
"Department for Business, Innovation and Skills","Department for Business, Innovation and Skills",05/07/2011,Standard Desktop Services (PFI),Finance & Commercial Group - Commercial Directorate,FUJITSU SERVICES LTD,1030476,258.96
"Department for Business, Innovation and Skills","Department for Business, Innovation and Skills",05/07/2011,Standard Desktop Services (PFI),Finance & Commercial Group - Commercial Directorate,FUJITSU SERVICES LTD,1030477,3555.37
"Department for Business, Innovation and Skills","Department for Business, Innovation and Skills",05/07/2011,Standard Desktop Services (PFI),Finance & Commercial Group - Commercial Directorate,FUJITSU SERVICES LTD,1030478,1645.91
"Department for Business, Innovation and Skills","Department for Business, Innovation and Skills",05/07/2011,Other Staff Costs (Programme),Finance & Commercial Group - Commercial Directorate,BADENOCH AND CLARK LTD,1030479,1463.4
"Department for Business, Innovation and Skills","Department for Business, Innovation and Skills",07/07/2011,Capital Grants - Other,Knowledge and Innovation Group - Research Base,NATIONAL ASSEMBLY FOR WALES,1030480,1056704
"Department for Business, Innovation and Skills","Department for Business, Innovation and Skills",05/07/2011,Standard Desktop Services (PFI),Finance & Commercial Group - Commercial Directorate,FUJITSU SERVICES LTD,1030481,94.82
"Department for Business, Innovation and Skills","Department for Business, Innovation and Skills",04/07/2011,Air Fares  - Overseas (Programme),Knowledge and Innovation Group - Research Base,ALZEIM LTD,1030482,1000
"Department for Business, Innovation and Skills","Department for Business, Innovation and Skills",05/07/2011,Other Staff Costs (Programme),Finance & Commercial Group - Commercial Directorate,BADENOCH AND CLARK LTD,1030483,1463.4
"Department for Business, Innovation and Skills","Department for Business, Innovation and Skills",05/07/2011,Standard Desktop Services (PFI),Finance & Commercial Group - Commercial Directorate,FUJITSU SERVICES LTD,1030484,348.6
"Department for Business, Innovation and Skills","Department for Business, Innovation and Skills",05/07/2011,Grants - Current - Other,Knowledge and Innovation Group - Research Base,THE ROYAL SOCIETY,1030485,430000
"Department for Business, Innovation and Skills","Department for Business, Innovation and Skills",05/07/2011,Standard Desktop Services (PFI),Finance & Commercial Group - Commercial Directorate,FUJITSU SERVICES LTD,1030486,1428.49
"Department for Business, Innovation and Skills","Department for Business, Innovation and Skills",07/07/2011,IT Services (Programme),Shareholder Executive - Shareholder Executive,FUJITSU SERVICES LTD,1030487,1260.61
"Department for Business, Innovation and Skills","Department for Business, Innovation and Skills",05/07/2011,Standard Desktop Services (PFI),Finance & Commercial Group - Commercial Directorate,FUJITSU SERVICES LTD,1030488,94.82
"Department for Business, Innovation and Skills","Department for Business, Innovation and Skills",05/07/2011,Standard Desktop Services (PFI),Finance & Commercial Group - Commercial Directorate,FUJITSU SERVICES LTD,1030490,94.82
"Department for Business, Innovation and Skills","Department for Business, Innovation and Skills",05/07/2011,Grants - Current - Other,Knowledge and Innovation Group - Research Base,"ROYAL ACADEMY OF ENGINEERING, RAE",1030491,758608
"Department for Business, Innovation and Skills","Department for Business, Innovation and Skills",07/07/2011,Economic Consultancy & Research,Business & Skills Group - Enterprise Directorate,UNIVERSITY OF STRATHCLYDE,1030492,3237.5
"Department for Business, Innovation and Skills","Department for Business, Innovation and Skills",05/07/2011,Grants - Current - Other,Knowledge and Innovation Group - Research Base,THE BRITISH ACADEMY,1030493,1102212
"Department for Business, Innovation and Skills","Department for Business, Innovation and Skills",04/07/2011,Secondees (not paid directly),Shareholder Executive - Shareholder Executive,CREDIT SUISSE SECURITIES (EUROPE) LTD,1030495,215.54
"Department for Business, Innovation and Skills","Department for Business, Innovation and Skills",04/07/2011,Secondees (not paid directly),Shareholder Executive - Shareholder Executive,CREDIT SUISSE SECURITIES (EUROPE) LTD,1030495,8667.46
"Department for Business, Innovation and Skills","Department for Business, Innovation and Skills",04/07/2011,Publications,Shareholder Executive - Shareholder Executive,JONES YARRELL LEADENHALL,1030496,122.06
"Department for Business, Innovation and Skills","Department for Business, Innovation and Skills",04/07/2011,Car Hire and Leasing,Market and Frameworks Group - Labour Market,INCHCAPE FLEET SOLUTIONS LTD,1030498,198.93
"Department for Business, Innovation and Skills","Department for Business, Innovation and Skills",04/07/2011,Car Hire and Leasing,Market and Frameworks Group - Labour Market,INCHCAPE FLEET SOLUTIONS LTD,1030498,271.01
"Department for Business, Innovation and Skills","Department for Business, Innovation and Skills",04/07/2011,Car Hire and Leasing,Market and Frameworks Group - Labour Market,INCHCAPE FLEET SOLUTIONS LTD,1030498,274.07
"Department for Business, Innovation and Skills","Department for Business, Innovation and Skills",04/07/2011,Car Hire and Leasing,Market and Frameworks Group - Labour Market,INCHCAPE FLEET SOLUTIONS LTD,1030498,216.11
"Department for Business, Innovation and Skills","Department for Business, Innovation and Skills",04/07/2011,Car Hire and Leasing,Market and Frameworks Group - Labour Market,INCHCAPE FLEET SOLUTIONS LTD,1030498,234.02
"Department for Business, Innovation and Skills","Department for Business, Innovation and Skills",04/07/2011,Finance & Accounting Advice,Shareholder Executive - Shareholder Executive,UBS LTD,1030499,50000
"Department for Business, Innovation and Skills","Department for Business, Innovation and Skills",04/07/2011,Standard Desktop Plus Service (PFI),Finance & Commercial Group - Commercial Directorate,FUJITSU SERVICES LTD,1030500,421.68
"Department for Business, Innovation and Skills","Department for Business, Innovation and Skills",04/07/2011,Standard Desktop Plus Service (PFI),Finance & Commercial Group - Commercial Directorate,FUJITSU SERVICES LTD,1030501,374.46
"Department for Business, Innovation and Skills","Department for Business, Innovation and Skills",08/07/2011,Other Accommodation Charges,Market and Frameworks Group - Business Environment,COMPETITION COMMISSION,1030502,44.88
"Department for Business, Innovation and Skills","Department for Business, Innovation and Skills",04/07/2011,Standard Desktop Plus Service (PFI),Finance & Commercial Group - Commercial Directorate,FUJITSU SERVICES LTD,1030503,44.63
"Department for Business, Innovation and Skills","Department for Business, Innovation and Skills",04/07/2011,ICT Business Specific Application Services (PFI),Finance & Commercial Group - Commercial Directorate,FUJITSU SERVICES LTD,1030504,3300.56
"Department for Business, Innovation and Skills","Department for Business, Innovation and Skills",04/07/2011,Standard Desktop Plus Service (PFI),Finance & Commercial Group - Commercial Directorate,FUJITSU SERVICES LTD,1030505,2465.06
"Department for Business, Innovation and Skills","Department for Business, Innovation and Skills",04/07/2011,Standard Desktop Plus Service (PFI),Finance & Commercial Group - Commercial Directorate,FUJITSU SERVICES LTD,1030507,292.41
"Department for Business, Innovation and Skills","Department for Business, Innovation and Skills",04/07/2011,Standard Desktop Plus Service (PFI),Finance & Commercial Group - Commercial Directorate,FUJITSU SERVICES LTD,1030508,21.57
"Department for Business, Innovation and Skills","Department for Business, Innovation and Skills",07/07/2011,Standard Desktop Plus Service (PFI),Finance & Commercial Group - Commercial Directorate,FUJITSU SERVICES LTD,1030510,1849.26
"Department for Business, Innovation and Skills","Department for Business, Innovation and Skills",06/07/2011,Printing,Business & Skills Group - Economic Development Directorate,THE STATIONERY OFFICE LTD,1030511,3611.04
"Department for Business, Innovation and Skills","Department for Business, Innovation and Skills",05/07/2011,Publications,Knowledge and Innovation Group - Higher Education,THE STATIONERY OFFICE LTD,1030512,15219.35
"Department for Business, Innovation and Skills","Department for Business, Innovation and Skills",05/07/2011,Publications,Knowledge and Innovation Group - Government Office For Science,JONES YARRELL LEADENHALL,1030513,130.93
"Department for Business, Innovation and Skills","Department for Business, Innovation and Skills",04/07/2011,Economic Consultancy & Research,Market and Frameworks Group - Labour Market,SKILLS FUNDING AGENCY,1030516,21344
"Department for Business, Innovation and Skills","Department for Business, Innovation and Skills",04/07/2011,Accommodation Rentals (Programme),Finance & Commercial Group - Commercial Directorate,INTERNATIONAL AIR TRANSPORT ASSOCIATION (IATA),1030517,102729
"Department for Business, Innovation and Skills","Department for Business, Innovation and Skills",04/07/2011,Hire of Agency Staff (Clerical/Secretariat/Other),Ministerial and Parliamentary Support Team - Ministerial and Parliamentary Support Team,ADECCO UK LTD,1030518,475.94
"Department for Business, Innovation and Skills","Department for Business, Innovation and Skills",04/07/2011,Hire of Agency Staff (Clerical/Secretariat/Other),Ministerial and Parliamentary Support Team - Ministerial and Parliamentary Support Team,ADECCO UK LTD,1030518,148.9
"Department for Business, Innovation and Skills","Department for Business, Innovation and Skills",07/07/2011,Publications,"Legal, People & Communications Group - Legal Services",LEXISNEXIS (A DIVISION OF REED ELSEVIER (UK) lTD),1030520,734.75
"Department for Business, Innovation and Skills","Department for Business, Innovation and Skills",05/07/2011,Maintenance of Office Machinery,Finance & Commercial Group - Commercial Directorate,PITNEY BOWES LTD,1030521,200
"Department for Business, Innovation and Skills","Department for Business, Innovation and Skills",04/07/2011,Rates (Programme),Finance & Commercial Group - Commercial Directorate,INTERNATIONAL AIR TRANSPORT ASSOCIATION (IATA),1030522,11667.77
"Department for Business, Innovation and Skills","Department for Business, Innovation and Skills",04/07/2011,Service Charges (Programme),Finance & Commercial Group - Commercial Directorate,PAUL CHASTON COMMERCIAL PROPERTY LTD,1030523,833
"Department for Business, Innovation and Skills","Department for Business, Innovation and Skills",04/07/2011,Other Accommodation Charges (Programme),Finance & Commercial Group - Commercial Directorate,F1 SECURITY SERVICES LTD,1030524,255
"Department for Business, Innovation and Skills","Department for Business, Innovation and Skills",04/07/2011,Electricity (Programme),Finance & Commercial Group - Commercial Directorate,INTERNATIONAL AIR TRANSPORT ASSOCIATION (IATA),1030525,602.08
"Department for Business, Innovation and Skills","Department for Business, Innovation and Skills",07/07/2011,Publications,Market and Frameworks Group - Labour Market,JONES YARRELL LEADENHALL,1030526,14.96
"Department for Business, Innovation and Skills","Department for Business, Innovation and Skills",05/07/2011,Accommodation Rentals (Programme),Finance & Commercial Group - Commercial Directorate,TELFORD AND WREKIN COUNCIL,1030527,7290
"Department for Business, Innovation and Skills","Department for Business, Innovation and Skills",05/07/2011,Service Charges (Programme),Finance & Commercial Group - Commercial Directorate,TELFORD AND WREKIN COUNCIL,1030527,2705.65
"Department for Business, Innovation and Skills","Department for Business, Innovation and Skills",08/07/2011,Publications,Business & Skills Group - Advanced Manufacturing Services,JONES YARRELL LEADENHALL,1030528,37.4
"Department for Business, Innovation and Skills","Department for Business, Innovation and Skills",04/07/2011,Accommodation Rentals (Programme),Finance & Commercial Group - Commercial Directorate,INTERNATIONAL AIR TRANSPORT ASSOCIATION (IATA),1030529,993.71
"Department for Business, Innovation and Skills","Department for Business, Innovation and Skills",05/07/2011,Publications,"Legal, People & Communications Group - Communications Directorate",JONES YARRELL LEADENHALL,1030530,397.54
"Department for Business, Innovation and Skills","Department for Business, Innovation and Skills",04/07/2011,Recoveries Account,Corporate Payments,FORD MOTOR COMPANY LTD,1030531,942295.89
"Department for Business, Innovation and Skills","Department for Business, Innovation and Skills",04/07/2011,Publications,Knowledge and Innovation Group - Innovation,JONES YARRELL LEADENHALL,1030532,18.7
"Department for Business, Innovation and Skills","Department for Business, Innovation and Skills",12/07/2011,Publications,"Legal, People & Communications Group - CTC Summary",JONES YARRELL LEADENHALL,1030533,18.7
"Department for Business, Innovation and Skills","Department for Business, Innovation and Skills",05/07/2011,PPM (Project & Programme Management) Training,Finance & Commercial Group - Finance Group,XAFINITY CONSULTING LTD T/A XAFINITY SKILL BASE,1030535,180
"Department for Business, Innovation and Skills","Department for Business, Innovation and Skills",08/07/2011,Research & Development Expenditure (Programme),Knowledge and Innovation Group - Government Office For Science,CITY UNIVERSITY LONDON,1030536,4000
"Department for Business, Innovation and Skills","Department for Business, Innovation and Skills",04/07/2011,Grants - Current - Other,Knowledge and Innovation Group - Research Base,DEPARTMENT OF HEALTH,1030537,35780
"Department for Business, Innovation and Skills","Department for Business, Innovation and Skills",05/07/2011,Hire of Reprographic Equipment,"Legal, People & Communications Group - Communications Directorate",XEROX FINANCE LTD,1030538,443.94
"Department for Business, Innovation and Skills","Department for Business, Innovation and Skills",04/07/2011,Sponsorship Support,ESBR - Analysis Directorate,OFFICE FOR NATIONAL STATISTICS,1030540,18601.05
"Department for Business, Innovation and Skills","Department for Business, Innovation and Skills",05/07/2011,Grants - Non Statutory - Current - Other,Market and Frameworks Group - Consumer and Competition Policy,NORTH YORKSHIRE COUNTY COUNCIL,1030541,7419.6
"Department for Business, Innovation and Skills","Department for Business, Innovation and Skills",05/07/2011,Grants - Current - Other,Knowledge and Innovation Group - Research Base,BRADFORD COLLEGE,1030542,36231.89
"Department for Business, Innovation and Skills","Department for Business, Innovation and Skills",06/07/2011,ICT Maintenance & Upkeep,Finance & Commercial Group - Commercial Directorate,PARITY RESOURCES LTD,1030543,9958
"Department for Business, Innovation and Skills","Department for Business, Innovation and Skills",05/07/2011,Grants - Current - Other,Knowledge and Innovation Group - Research Base,BRADFORD COLLEGE,1030545,41890.11
"Department for Business, Innovation and Skills","Department for Business, Innovation and Skills",04/07/2011,Finance & Accounting Advice,Shareholder Executive - Shareholder Executive,GOVERNMENT ACTUARYS DEPARTMENT,1030546,14151.7
"Department for Business, Innovation and Skills","Department for Business, Innovation and Skills",05/07/2011,Publications,Market and Frameworks Group - Consumer and Competition Policy,JORDAN PUBLISHING LTD,1030547,55
"Department for Business, Innovation and Skills","Department for Business, Innovation and Skills",05/07/2011,Grants - Non Statutory - Current - Other,Market and Frameworks Group - Consumer and Competition Policy,NOTTINGHAMSHIRE COUNTY COUNCIL,1030548,20718
"Department for Business, Innovation and Skills","Department for Business, Innovation and Skills",05/07/2011,Grants - Non Statutory - Current - Other,Market and Frameworks Group - Consumer and Competition Policy,NOTTINGHAMSHIRE COUNTY COUNCIL,1030548,20718
"Department for Business, Innovation and Skills","Department for Business, Innovation and Skills",05/07/2011,Grants - Non Statutory - Current - Other,Market and Frameworks Group - Consumer and Competition Policy,NOTTINGHAMSHIRE COUNTY COUNCIL,1030548,20718
"Department for Business, Innovation and Skills","Department for Business, Innovation and Skills",05/07/2011,Grants - Non Statutory - Current - Other,Market and Frameworks Group - Consumer and Competition Policy,NOTTINGHAMSHIRE COUNTY COUNCIL,1030548,19653.19
"Department for Business, Innovation and Skills","Department for Business, Innovation and Skills",04/07/2011,Finance & Accounting Advice,Shareholder Executive - Shareholder Executive,GOVERNMENT ACTUARYS DEPARTMENT,1030549,19706.6
"Department for Business, Innovation and Skills","Department for Business, Innovation and Skills",04/07/2011,Finance & Accounting Advice,Shareholder Executive - Shareholder Executive,GOVERNMENT ACTUARYS DEPARTMENT,1030550,6779.8
"Department for Business, Innovation and Skills","Department for Business, Innovation and Skills",04/07/2011,Finance & Accounting Advice,Shareholder Executive - Shareholder Executive,GOVERNMENT ACTUARYS DEPARTMENT,1030551,8865.85
"Department for Business, Innovation and Skills","Department for Business, Innovation and Skills",04/07/2011,Finance & Accounting Advice,Shareholder Executive - Shareholder Executive,GOVERNMENT ACTUARYS DEPARTMENT,1030551,6499.45
"Department for Business, Innovation and Skills","Department for Business, Innovation and Skills",05/07/2011,ICT Business Specific Application Services,Finance & Commercial Group - Commercial Directorate,PARITY RESOURCES LTD,1030552,55957.48
"Department for Business, Innovation and Skills","Department for Business, Innovation and Skills",13/07/2011,Mobile Phones,Business & Skills Group - Economic Development Directorate,VODAFONE LTD,1030553,0.41
"Department for Business, Innovation and Skills","Department for Business, Innovation and Skills",13/07/2011,Mobile Phones,Business & Skills Group - Economic Development Directorate,VODAFONE LTD,1030553,32.33
"Department for Business, Innovation and Skills","Department for Business, Innovation and Skills",05/07/2011,ICT Business Specific Application Services,Finance & Commercial Group - Commercial Directorate,PARITY RESOURCES LTD,1030554,55957.48
"Department for Business, Innovation and Skills","Department for Business, Innovation and Skills",05/07/2011,Other IT Costs,Market and Frameworks Group - Export Control Organisation,PARITY RESOURCES LTD,1030555,27300
"Department for Business, Innovation and Skills","Department for Business, Innovation and Skills",05/07/2011,Publications,ESBR - Analysis Directorate,JONES YARRELL LEADENHALL,1030556,51
"Department for Business, Innovation and Skills","Department for Business, Innovation and Skills",05/07/2011,Publications,ESBR - Analysis Directorate,JONES YARRELL LEADENHALL,1030557,12.95
"Department for Business, Innovation and Skills","Department for Business, Innovation and Skills",06/07/2011,Other IT Costs (Programme),Market and Frameworks Group - Europe and World Trade Directorates,PARITY RESOURCES LTD,1030558,6468.5
"Department for Business, Innovation and Skills","Department for Business, Innovation and Skills",06/07/2011,Other IT Costs (Programme),Market and Frameworks Group - Europe and World Trade Directorates,PARITY RESOURCES LTD,1030558,7990.5
"Department for Business, Innovation and Skills","Department for Business, Innovation and Skills",05/07/2011,Hire of Agency Staff (Professional/Management),Finance & Commercial Group - Finance Group,MICHAEL PAGE INTERNATIONAL RECRUITMENT LTD,1030559,2026.08
"Department for Business, Innovation and Skills","Department for Business, Innovation and Skills",05/07/2011,ICT Business Specific Application Services (PFI),Finance & Commercial Group - Commercial Directorate,FUJITSU SERVICES LTD,1030561,19454.4
"Department for Business, Innovation and Skills","Department for Business, Innovation and Skills",05/07/2011,ICT Business Specific Application Services (PFI),Finance & Commercial Group - Commercial Directorate,FUJITSU SERVICES LTD,1030561,10891.3
"Department for Business, Innovation and Skills","Department for Business, Innovation and Skills",04/07/2011,Grant in Aid - Current -Other,ESBR - Better Regulation Executive (BRE),LOCAL BETTER REGULATION OFFICE,1030562,861895
"Department for Business, Innovation and Skills","Department for Business, Innovation and Skills",05/07/2011,ICT Infrastructure Specific Service (PFI),Finance & Commercial Group - Commercial Directorate,FUJITSU SERVICES LTD,1030563,22393.2
"Department for Business, Innovation and Skills","Department for Business, Innovation and Skills",05/07/2011,ICT Infrastructure Specific Service,Finance & Commercial Group - Commercial Directorate,XMA LTD,1030564,6474.9
"Department for Business, Innovation and Skills","Department for Business, Innovation and Skills",05/07/2011,Water,Finance & Commercial Group - Commercial Directorate,SCOTTISH WATER BUSINESS STREAM LTD T/A BUSINESS STREAM,1030565,7360.35
"Department for Business, Innovation and Skills","Department for Business, Innovation and Skills",05/07/2011,Payments to Redfern for Rail Travel Contract,Finance & Commercial Group - Finance Group,REDFERN TRAVEL LTD,1030566,135375.61
"Department for Business, Innovation and Skills","Department for Business, Innovation and Skills",05/07/2011,Payments to Expotel for Hotel Costs Contract,Finance & Commercial Group - Finance Group,EXPOTEL HOTEL RESERVATIONS LTD,1030569,16941.56
"Department for Business, Innovation and Skills","Department for Business, Innovation and Skills",07/07/2011,Outsourced Programme Management Services,"Legal, People & Communications Group - Innovation Capability Team",FUJITSU SERVICES LTD,1030571,19991
"Department for Business, Innovation and Skills","Department for Business, Innovation and Skills",06/07/2011,ICT Maintenance & Upkeep (PFI),Finance & Commercial Group - Commercial Directorate,FUJITSU SERVICES LTD,1030572,1112.7
"Department for Business, Innovation and Skills","Department for Business, Innovation and Skills",06/07/2011,Outsourced Programme Management Services,Business & Skills Group - Further Education & Skills Investment,COI COMMUNICATIONS,1030574,34703.4
"Department for Business, Innovation and Skills","Department for Business, Innovation and Skills",05/07/2011,Stationery,Shareholder Executive - Shareholder Executive,XMA LTD,1030576,69.6
"Department for Business, Innovation and Skills","Department for Business, Innovation and Skills",06/07/2011,Publications,Ministerial and Parliamentary Support Team - Ministerial and Parliamentary Support Team,THE STATIONERY OFFICE LTD,1030578,160
"Department for Business, Innovation and Skills","Department for Business, Innovation and Skills",06/07/2011,Publications,Ministerial and Parliamentary Support Team - Ministerial and Parliamentary Support Team,THE STATIONERY OFFICE LTD,1030578,156
"Department for Business, Innovation and Skills","Department for Business, Innovation and Skills",05/07/2011,Maintenance of Office Machinery,Finance & Commercial Group - Commercial Directorate,PITNEY BOWES LTD,1030579,-200
"Department for Business, Innovation and Skills","Department for Business, Innovation and Skills",07/07/2011,Hire of Agency Staff (Clerical/Secretariat/Other),"Legal, People & Communications Group - HRCM - Human Resources and Change Management Directorate",BROOK STREET (UK) LTD,1030580,493.73
"Department for Business, Innovation and Skills","Department for Business, Innovation and Skills",06/07/2011,Maintenance of Office Machinery,Finance & Commercial Group - Commercial Directorate,PITNEY BOWES LTD,1030582,200
"Department for Business, Innovation and Skills","Department for Business, Innovation and Skills",06/07/2011,Maintenance of Office Machinery,Finance & Commercial Group - Commercial Directorate,PITNEY BOWES LTD,1030582,9.95
"Department for Business, Innovation and Skills","Department for Business, Innovation and Skills",05/07/2011,Professional Training,Business & Skills Group - Enterprise Directorate,MDP,1030583,350
"Department for Business, Innovation and Skills","Department for Business, Innovation and Skills",05/07/2011,Occupational Health Service,"Legal, People & Communications Group - HRCM - Human Resources and Change Management Directorate",MEDIGOLD HEALTH CONSULTANCY LTD,1030589,709.78
"Department for Business, Innovation and Skills","Department for Business, Innovation and Skills",05/07/2011,Other Training Costs,Office of Manpower Economics - Office of Manpower Economics,OPTIMUS PROFESSIONAL PUBLISHING LTD T/A OPTIMUS - EDUCATION,1030591,429
"Department for Business, Innovation and Skills","Department for Business, Innovation and Skills",05/07/2011,Publications,Knowledge and Innovation Group - Government Office For Science,JONES YARRELL LEADENHALL,1030595,65.48
"Department for Business, Innovation and Skills","Department for Business, Innovation and Skills",05/07/2011,Leased Buildings - Clearing,Finance & Commercial Group - Commercial Directorate,M J FERGUSON LTD,1030596,147890.34
"Department for Business, Innovation and Skills","Department for Business, Innovation and Skills",05/07/2011,Other Accommodation Charges (Programme),Finance & Commercial Group - Commercial Directorate,PROGRAMMED CLEANING & SUPPORT SERVICES LTD,1030597,357.5
"Department for Business, Innovation and Skills","Department for Business, Innovation and Skills",05/07/2011,Additions - Enterprise Equity Investments,Business & Skills Group - Enterprise Directorate,BERR EQUITY INVESTMENT PROGRAMMES (CAPITAL),1030598,61076.67
"Department for Business, Innovation and Skills","Department for Business, Innovation and Skills",05/07/2011,Additions - Enterprise Equity Investments,Business & Skills Group - Enterprise Directorate,BERR EQUITY INVESTMENT PROGRAMMES (CAPITAL),1030599,446206
"Department for Business, Innovation and Skills","Department for Business, Innovation and Skills",05/07/2011,Additions - Enterprise Equity Investments,Business & Skills Group - Enterprise Directorate,BERR EQUITY INVESTMENT PROGRAMMES (CAPITAL),1030599,333333.33
"Department for Business, Innovation and Skills","Department for Business, Innovation and Skills",05/07/2011,Additions - Enterprise Equity Investments,Business & Skills Group - Enterprise Directorate,BERR EQUITY INVESTMENT PROGRAMMES (CAPITAL),1030599,97500
"Department for Business, Innovation and Skills","Department for Business, Innovation and Skills",05/07/2011,Payments to Barclays for Carlson Wagonlit Travel Contract,Finance & Commercial Group - Finance Group,CARLSON WAGONLIT TRAVEL UK LTD,1030600,1518.38
"Department for Business, Innovation and Skills","Department for Business, Innovation and Skills",25/07/2011,Finance Training,Finance & Commercial Group - Finance Group,BPP PROFESSIONAL EDUCATION LTD,1031928,597.65
"Department for Business, Innovation and Skills","Department for Business, Innovation and Skills",25/07/2011,Finance Training,Finance & Commercial Group - Finance Group,BPP PROFESSIONAL EDUCATION LTD,1031928,472.82
"Department for Business, Innovation and Skills","Department for Business, Innovation and Skills",29/07/2011,Leadership & People Management Training,Market and Frameworks Group - Consumer and Competition Policy,ITSA LTD,1031943,1780
"Department for Business, Innovation and Skills","Department for Business, Innovation and Skills",25/07/2011,Hire of Agency Staff (Professional/Management),Finance & Commercial Group - Finance Group,MICHAEL PAGE INTERNATIONAL RECRUITMENT LTD,1031944,1874.12
"Department for Business, Innovation and Skills","Department for Business, Innovation and Skills",25/07/2011,Technical Advice,Shareholder Executive - Shareholder Executive,HYPERLINK SERVICES LTD,1031945,900
"Department for Business, Innovation and Skills","Department for Business, Innovation and Skills",25/07/2011,Technical Advice,Shareholder Executive - Shareholder Executive,HYPERLINK SERVICES LTD,1031946,900
"Department for Business, Innovation and Skills","Department for Business, Innovation and Skills",25/07/2011,Hire of Agency Staff (Professional/Management),Ministerial and Parliamentary Support Team - Ministerial and Parliamentary Support Team,THE LONDON APPRENTICESHIP COMPANY,1031947,628.4
"Department for Business, Innovation and Skills","Department for Business, Innovation and Skills",28/07/2011,Estates Consultancy and Professional Services,Shareholder Executive - Shareholder Executive,JONES LANG LASALLE LTD,1031948,7741.13
"Department for Business, Innovation and Skills","Department for Business, Innovation and Skills",26/07/2011,Estates Consultancy and Professional Services,Shareholder Executive - Shareholder Executive,JONES LANG LASALLE LTD,1031952,17201.9
"Department for Business, Innovation and Skills","Department for Business, Innovation and Skills",27/07/2011,Mobile Phones,Market and Frameworks Group - Consumer and Competition Policy,VODAFONE LTD,1031961,13.94
"Department for Business, Innovation and Skills","Department for Business, Innovation and Skills",27/07/2011,Standard Desktop Plus Services,Finance & Commercial Group - Commercial Directorate,VODAFONE LTD,1031966,12.11
"Department for Business, Innovation and Skills","Department for Business, Innovation and Skills",26/07/2011,Mobile Line Rental,Finance & Commercial Group - Finance Group,VODAFONE LTD,1031978,50.4
"Department for Business, Innovation and Skills","Department for Business, Innovation and Skills",26/07/2011,Mobile Call Charges,Finance & Commercial Group - Finance Group,VODAFONE LTD,1031978,9.73
"Department for Business, Innovation and Skills","Department for Business, Innovation and Skills",29/07/2011,Mobile Call Charges,Finance & Commercial Group - Commercial Directorate,VODAFONE LTD,1031990,16.44
"Department for Business, Innovation and Skills","Department for Business, Innovation and Skills",25/07/2011,Sponsorship Support,ESBR - Analysis Directorate,CONSTRUCTING EXCELLENCE LTD,1031991,10550
"Department for Business, Innovation and Skills","Department for Business, Innovation and Skills",25/07/2011,Grant in Aid - Current -Other,Knowledge and Innovation Group - Office of the Knowledge & Innovation DG,UKAEA,1031992,1093473
"Department for Business, Innovation and Skills","Department for Business, Innovation and Skills",25/07/2011,Hire of Agency Staff (Professional/Management),"Legal, People & Communications Group - HRCM - Human Resources and Change Management Directorate",MORGAN LAW PARTNERS LLP,1031993,3600.6
"Department for Business, Innovation and Skills","Department for Business, Innovation and Skills",25/07/2011,Hire of Agency Staff (Professional/Management),"Legal, People & Communications Group - HRCM - Human Resources and Change Management Directorate",MORGAN LAW PARTNERS LLP,1031994,1694.4
"Department for Business, Innovation and Skills","Department for Business, Innovation and Skills",25/07/2011,Recruitment Advice and Services,Business & Skills Group - RDA Transition and Closures,GOVERNMENT ACTUARYS DEPARTMENT,1031995,19162.7
"Department for Business, Innovation and Skills","Department for Business, Innovation and Skills",25/07/2011,Hire of Agency Staff (Professional/Management),"Legal, People & Communications Group - HRCM - Human Resources and Change Management Directorate",MORGAN LAW PARTNERS LLP,1031996,912
"Department for Business, Innovation and Skills","Department for Business, Innovation and Skills",25/07/2011,Hire of Agency Staff (Professional/Management),"Legal, People & Communications Group - HRCM - Human Resources and Change Management Directorate",MORGAN LAW PARTNERS LLP,1031997,1596.36
"Department for Business, Innovation and Skills","Department for Business, Innovation and Skills",25/07/2011,ICT Maintenance & Upkeep,Finance & Commercial Group - Commercial Directorate,SAS SOFTWARE LTD,1031998,20110
"Department for Business, Innovation and Skills","Department for Business, Innovation and Skills",25/07/2011,Other Accommodation Charges,Finance & Commercial Group - Commercial Directorate,RUSSAM GMS LTD,1031999,2756.25
"Department for Business, Innovation and Skills","Department for Business, Innovation and Skills",27/07/2011,Mobile Call Charges,Shareholder Executive - Shareholder Executive,VODAFONE LTD,1032010,11.56
"Department for Business, Innovation and Skills","Department for Business, Innovation and Skills",26/07/2011,Legal Costs (Programme),Shareholder Executive - Shareholder Executive,BEACHCROFT LLP,1032015,1500
"Department for Business, Innovation and Skills","Department for Business, Innovation and Skills",26/07/2011,Legal Costs (Programme),Shareholder Executive - Shareholder Executive,BEACHCROFT LLP,1032016,500
"Department for Business, Innovation and Skills","Department for Business, Innovation and Skills",26/07/2011,Employment Relations Paternity & Adoption Pay : Reimbursement to Inland Revenue,Market and Frameworks Group - Labour Market,HM REVENUE & CUSTOMS,1032017,275396.77
"Department for Business, Innovation and Skills","Department for Business, Innovation and Skills",26/07/2011,Payments to Expotel for Hotel Costs Contract,Finance & Commercial Group - Finance Group,EXPOTEL HOTEL RESERVATIONS LTD,1032018,115.83
"Department for Business, Innovation and Skills","Department for Business, Innovation and Skills",26/07/2011,Payments to Expotel for Hotel Costs Contract,Finance & Commercial Group - Finance Group,EXPOTEL HOTEL RESERVATIONS LTD,1032018,15948
"Department for Business, Innovation and Skills","Department for Business, Innovation and Skills",29/07/2011,Media Services,"Legal, People & Communications Group - Communications Directorate",NEWS INTERNATIONAL ASSOCIATED SERVICES LTD,1032019,-263.56
"Department for Business, Innovation and Skills","Department for Business, Innovation and Skills",26/07/2011,Electricity,Finance & Commercial Group - Commercial Directorate,STOCKTON BOROUGH COUNCIL,1032020,720.84
"Department for Business, Innovation and Skills","Department for Business, Innovation and Skills",26/07/2011,Research & Development Expenditure (Programme),Knowledge and Innovation Group - Government Office For Science,KEVIN SHEPPARD,1032021,250
"Department for Business, Innovation and Skills","Department for Business, Innovation and Skills",26/07/2011,Car Hire and Leasing,Ministerial and Parliamentary Support Team - Ministerial and Parliamentary Support Team,GOVERNMENT CAR AND DESPATCH AGENCY,1032024,5903.54
"Department for Business, Innovation and Skills","Department for Business, Innovation and Skills",29/07/2011,Car Hire and Leasing,Ministerial and Parliamentary Support Team - Ministerial and Parliamentary Support Team,GOVERNMENT CAR AND DESPATCH AGENCY,1032025,25.04
"Department for Business, Innovation and Skills","Department for Business, Innovation and Skills",26/07/2011,Hire of Agency Staff (Clerical/Secretariat/Other),Ministerial and Parliamentary Support Team - Ministerial and Parliamentary Support Team,OFFICE ANGELS LTD,1032030,751.44
"Department for Business, Innovation and Skills","Department for Business, Innovation and Skills",26/07/2011,Hire of Agency Staff (Clerical/Secretariat/Other),Ministerial and Parliamentary Support Team - Ministerial and Parliamentary Support Team,OFFICE ANGELS LTD,1032032,82.42
"Department for Business, Innovation and Skills","Department for Business, Innovation and Skills",26/07/2011,Hire of Agency Staff (Clerical/Secretariat/Other),Ministerial and Parliamentary Support Team - Ministerial and Parliamentary Support Team,OFFICE ANGELS LTD,1032032,610.85
"Department for Business, Innovation and Skills","Department for Business, Innovation and Skills",26/07/2011,Hire of Agency Staff (Clerical/Secretariat/Other),Ministerial and Parliamentary Support Team - Ministerial and Parliamentary Support Team,OFFICE ANGELS LTD,1032033,717.5
"Department for Business, Innovation and Skills","Department for Business, Innovation and Skills",26/07/2011,Mobile Call Charges,Market and Frameworks Group - Europe and World Trade Directorates,VODAFONE LTD,1032034,2.87
"Department for Business, Innovation and Skills","Department for Business, Innovation and Skills",26/07/2011,Hire of Agency Staff (Clerical/Secretariat/Other),Ministerial and Parliamentary Support Team - Ministerial and Parliamentary Support Team,OFFICE ANGELS LTD,1032036,799.92
"Department for Business, Innovation and Skills","Department for Business, Innovation and Skills",26/07/2011,Hire of Agency Staff (Clerical/Secretariat/Other),Ministerial and Parliamentary Support Team - Ministerial and Parliamentary Support Team,OFFICE ANGELS LTD,1032037,775.68
"Department for Business, Innovation and Skills","Department for Business, Innovation and Skills",26/07/2011,Mobile Call Charges,Market and Frameworks Group - Europe and World Trade Directorates,VODAFONE LTD,1032039,2.82
"Department for Business, Innovation and Skills","Department for Business, Innovation and Skills",26/07/2011,Mobile Phones,"Legal, People & Communications Group - Communications Directorate",VODAFONE LTD,1032040,502.21
"Department for Business, Innovation and Skills","Department for Business, Innovation and Skills",26/07/2011,Mobile Phones,"Legal, People & Communications Group - Communications Directorate",VODAFONE LTD,1032040,123.1
"Department for Business, Innovation and Skills","Department for Business, Innovation and Skills",26/07/2011,Hire of Agency Staff (Professional/Management),"Legal, People & Communications Group - Communications Directorate",COI COMMUNICATIONS,1032041,1035.6
"Department for Business, Innovation and Skills","Department for Business, Innovation and Skills",26/07/2011,Accommodation Rentals,Finance & Commercial Group - Commercial Directorate,NATIONAL CAR PARKS LTD,1032043,1096.99
"Department for Business, Innovation and Skills","Department for Business, Innovation and Skills",27/07/2011,Other Accommodation Charges,"Legal, People & Communications Group - HRCM - Human Resources and Change Management Directorate",DRAGON FIRE & SECURITY SYSTEMS LTD,1032045,36
"Department for Business, Innovation and Skills","Department for Business, Innovation and Skills",26/07/2011,Stationery,Knowledge and Innovation Group - Innovation,LYRECO UK LTD,1032053,19.85
"Department for Business, Innovation and Skills","Department for Business, Innovation and Skills",26/07/2011,Accommodation Rentals,Finance & Commercial Group - Commercial Directorate,EDDISONS COMMERCIAL (PROPERTY MANAGEMENT) LTD T/A EDDISONS,1032059,214500
"Department for Business, Innovation and Skills","Department for Business, Innovation and Skills",26/07/2011,Hire of Agency Staff (Clerical/Secretariat/Other),"Legal, People & Communications Group - HRCM - Human Resources and Change Management Directorate",OFFICE ANGELS LTD,1032064,304
"Department for Business, Innovation and Skills","Department for Business, Innovation and Skills",26/07/2011,Other Staff Costs (Programme),Finance & Commercial Group - Commercial Directorate,BADENOCH AND CLARK LTD,1032065,1463.4
"Department for Business, Innovation and Skills","Department for Business, Innovation and Skills",27/07/2011,Hire of Reprographic Equipment,Market and Frameworks Group - Market Frameworks DG,RICOH UK LTD,1032066,114.15
"Department for Business, Innovation and Skills","Department for Business, Innovation and Skills",26/07/2011,Stationery,"Legal, People & Communications Group - HRCM - Human Resources and Change Management Directorate",LYRECO UK LTD,1032067,546.47
"Department for Business, Innovation and Skills","Department for Business, Innovation and Skills",27/07/2011,Stationery,"Legal, People & Communications Group - HRCM - Human Resources and Change Management Directorate",LYRECO UK LTD,1032068,-17.81
"Department for Business, Innovation and Skills","Department for Business, Innovation and Skills",29/07/2011,Water (Programme),Finance & Commercial Group - Commercial Directorate,ESSEX AND SUFFOLK WATER LTD,1032069,115
"Department for Business, Innovation and Skills","Department for Business, Innovation and Skills",29/07/2011,Mobile Line Rental,Market and Frameworks Group - Consumer and Competition Policy,VODAFONE LTD,1032072,72.9
"Department for Business, Innovation and Skills","Department for Business, Innovation and Skills",27/07/2011,Criminal Law and Prosecution Work,"Legal, People & Communications Group - Legal Services",ELVIN & CO,1032073,294.54
"Department for Business, Innovation and Skills","Department for Business, Innovation and Skills",27/07/2011,Criminal Law and Prosecution Work,"Legal, People & Communications Group - Legal Services",ELVIN & CO,1032073,4.8
"Department for Business, Innovation and Skills","Department for Business, Innovation and Skills",27/07/2011,Criminal Law and Prosecution Work,"Legal, People & Communications Group - Legal Services",BTG GLOBAL RISK PARTNERS (DIVISION OF BEGBIES TRAYNOR (CENTRAL) LLP),1032074,2880
"Department for Business, Innovation and Skills","Department for Business, Innovation and Skills",27/07/2011,Criminal Law and Prosecution Work,"Legal, People & Communications Group - Legal Services",DAVIS COLEMAN LTD,1032076,153.6
"Department for Business, Innovation and Skills","Department for Business, Innovation and Skills",26/07/2011,Interest on Post Office Working Capital Loans,Shareholder Executive - Shareholder Executive,POST OFFICE LTD C/O ROYAL MAIL,1032077,-8768.53
"Department for Business, Innovation and Skills","Department for Business, Innovation and Skills",26/07/2011,Additions Post Office Ltd - Loans from Vote,Shareholder Executive - Shareholder Executive,POST OFFICE LTD C/O ROYAL MAIL,1032077,19000000
"Department for Business, Innovation and Skills","Department for Business, Innovation and Skills",26/07/2011,Grant in Aid - Current -Other,Business & Skills Group - Enterprise Directorate,CAPITAL FOR ENTERPRISE LTD,1032078,425000
"Department for Business, Innovation and Skills","Department for Business, Innovation and Skills",26/07/2011,Criminal Law and Prosecution Work,"Legal, People & Communications Group - Legal Services",FABER & CO,1032079,1077.2
"Department for Business, Innovation and Skills","Department for Business, Innovation and Skills",26/07/2011,Criminal Law and Prosecution Work,"Legal, People & Communications Group - Legal Services",FABER & CO,1032079,2.7
"Department for Business, Innovation and Skills","Department for Business, Innovation and Skills",27/07/2011,Criminal Law and Prosecution Work,"Legal, People & Communications Group - Legal Services",BEATA MOLGA,1032083,25
"Department for Business, Innovation and Skills","Department for Business, Innovation and Skills",26/07/2011,Other IT Costs (Programme),Market and Frameworks Group - Consumer and Competition Policy,TRADING STANDARDS INSTITUTE (TSI),1032085,37199.62
"Department for Business, Innovation and Skills","Department for Business, Innovation and Skills",26/07/2011,Freight Charges,Finance & Commercial Group - Commercial Directorate,DHL GLOBAL FORWARDING (UK) LTD,1032086,3312.59
"Department for Business, Innovation and Skills","Department for Business, Innovation and Skills",27/07/2011,Criminal Law and Prosecution Work,"Legal, People & Communications Group - Legal Services",MORECROFTS LLP,1032087,417.53
"Department for Business, Innovation and Skills","Department for Business, Innovation and Skills",27/07/2011,Criminal Law and Prosecution Work,"Legal, People & Communications Group - Legal Services",MORECROFTS LLP,1032087,200
"Department for Business, Innovation and Skills","Department for Business, Innovation and Skills",26/07/2011,Mobile Line Rental,Market and Frameworks Group - Business Environment,VODAFONE LTD,1032088,15.97
"Department for Business, Innovation and Skills","Department for Business, Innovation and Skills",26/07/2011,Freight Charges,Finance & Commercial Group - Commercial Directorate,DHL GLOBAL FORWARDING (UK) LTD,1032089,844.49
"Department for Business, Innovation and Skills","Department for Business, Innovation and Skills",26/07/2011,Courier Services,Finance & Commercial Group - Commercial Directorate,TNT INTERNATIONAL UK,1032090,54.29
"Department for Business, Innovation and Skills","Department for Business, Innovation and Skills",26/07/2011,Courier Services,Finance & Commercial Group - Finance Group,COPLEY COURIERS,1032091,69
"Department for Business, Innovation and Skills","Department for Business, Innovation and Skills",26/07/2011,Technical Advice / Services & Support,ESBR - Better Regulation Executive (BRE),SIR DONALD CURRY,1032093,3834
"Department for Business, Innovation and Skills","Department for Business, Innovation and Skills",26/07/2011,Other Training Costs,"Legal, People & Communications Group - Communications Directorate",ZZZZHAMILTON MERCER TRAINING LTD,1032094,229
"Department for Business, Innovation and Skills","Department for Business, Innovation and Skills",28/07/2011,InfoSource Desktop Information and Research Services,Finance & Commercial Group - Commercial Directorate,LEXISNEXIS (A DIVISION OF REED ELSEVIER (UK) lTD),1032095,11000
"Department for Business, Innovation and Skills","Department for Business, Innovation and Skills",26/07/2011,Grants - Current - Other,Knowledge and Innovation Group - Office of the Knowledge & Innovation DG,US-UK FULBRIGHT COMMISSION,1032096,55000
"Department for Business, Innovation and Skills","Department for Business, Innovation and Skills",27/07/2011,Hire of Agency Staff (Professional/Management),"Legal, People & Communications Group - Communications Directorate",MICHAEL PAGE INTERNATIONAL RECRUITMENT LTD,1032097,2532.25
"Department for Business, Innovation and Skills","Department for Business, Innovation and Skills",28/07/2011,Car Hire and Leasing,"Legal, People & Communications Group - Legal Services",ARVAL (UK) LTD,1032099,421.46
"Department for Business, Innovation and Skills","Department for Business, Innovation and Skills",27/07/2011,Criminal Law and Prosecution Work,"Legal, People & Communications Group - Legal Services",YVONNE HALLIDAY,1032103,33.5
"Department for Business, Innovation and Skills","Department for Business, Innovation and Skills",27/07/2011,Accelerated Development Programme/Fast Stream Training,"Legal, People & Communications Group - HRCM - Human Resources and Change Management Directorate",THE COMMUNICAID GROUP,1032104,769.8
"Department for Business, Innovation and Skills","Department for Business, Innovation and Skills",26/07/2011,IT Services (Programme),Finance & Commercial Group - Finance Group,AMEY COMMUNITY LTD,1032106,31281.76
"Department for Business, Innovation and Skills","Department for Business, Innovation and Skills",26/07/2011,IT Services (Programme),Finance & Commercial Group - Finance Group,AMEY COMMUNITY LTD,1032107,31143.2
"Department for Business, Innovation and Skills","Department for Business, Innovation and Skills",27/07/2011,ICT Infrastructure Specific Service,Finance & Commercial Group - Commercial Directorate,XMA LTD,1032108,2243.76
"Department for Business, Innovation and Skills","Department for Business, Innovation and Skills",27/07/2011,Leadership & People Management Training,"Legal, People & Communications Group - HRCM - Human Resources and Change Management Directorate",NATIONAL SCHOOL OF GOVERNMENT,1032109,2400
"Department for Business, Innovation and Skills","Department for Business, Innovation and Skills",27/07/2011,ICT Infrastructure Specific Service,Finance & Commercial Group - Commercial Directorate,XMA LTD,1032110,1739.64
"Department for Business, Innovation and Skills","Department for Business, Innovation and Skills",27/07/2011,Leadership & People Management Training,"Legal, People & Communications Group - HRCM - Human Resources and Change Management Directorate",NATIONAL SCHOOL OF GOVERNMENT,1032111,600
"Department for Business, Innovation and Skills","Department for Business, Innovation and Skills",27/07/2011,ICT Infrastructure Specific Service,Finance & Commercial Group - Commercial Directorate,XMA LTD,1032112,6702.84
"Department for Business, Innovation and Skills","Department for Business, Innovation and Skills",27/07/2011,Leadership & People Management Training,"Legal, People & Communications Group - HRCM - Human Resources and Change Management Directorate",NATIONAL SCHOOL OF GOVERNMENT,1032113,1400
"Department for Business, Innovation and Skills","Department for Business, Innovation and Skills",27/07/2011,Stationery,"Legal, People & Communications Group - Legal Services",OFFICE DEPOT INTERNATIONAL (UK) LTD T/A VIKING DIRECT,1032116,52.86
"Department for Business, Innovation and Skills","Department for Business, Innovation and Skills",27/07/2011,Stationery,"Legal, People & Communications Group - Legal Services",OFFICE DEPOT INTERNATIONAL (UK) LTD T/A VIKING DIRECT,1032117,204.22
"Department for Business, Innovation and Skills","Department for Business, Innovation and Skills",27/07/2011,Security Clearance Costs,"Legal, People & Communications Group - HRCM - Human Resources and Change Management Directorate",DISCLOSURE SCOTLAND,1032118,175
"Department for Business, Innovation and Skills","Department for Business, Innovation and Skills",29/07/2011,Standard Desktop Plus Service (PFI),Finance & Commercial Group - Commercial Directorate,FUJITSU SERVICES LTD,1032119,64.32
"Department for Business, Innovation and Skills","Department for Business, Innovation and Skills",27/07/2011,Standard Desktop Plus Service (PFI),Finance & Commercial Group - Commercial Directorate,FUJITSU SERVICES LTD,1032120,2989.1
"Department for Business, Innovation and Skills","Department for Business, Innovation and Skills",27/07/2011,Standard Desktop Plus Service (PFI),Finance & Commercial Group - Commercial Directorate,FUJITSU SERVICES LTD,1032121,254.53
"Department for Business, Innovation and Skills","Department for Business, Innovation and Skills",29/07/2011,Standard Desktop Plus Service (PFI),Finance & Commercial Group - Commercial Directorate,FUJITSU SERVICES LTD,1032122,32.16
"Department for Business, Innovation and Skills","Department for Business, Innovation and Skills",29/07/2011,Standard Desktop Plus Service (PFI),Finance & Commercial Group - Commercial Directorate,FUJITSU SERVICES LTD,1032123,236.06
"Department for Business, Innovation and Skills","Department for Business, Innovation and Skills",27/07/2011,IT Services (Programme),Shareholder Executive - Shareholder Executive,FUJITSU SERVICES LTD,1032124,2857
"Department for Business, Innovation and Skills","Department for Business, Innovation and Skills",27/07/2011,ICT Maintenance & Upkeep,Finance & Commercial Group - Commercial Directorate,ELAN COMPUTING LTD,1032125,1859.76
"Department for Business, Innovation and Skills","Department for Business, Innovation and Skills",27/07/2011,ICT Maintenance & Upkeep,Finance & Commercial Group - Commercial Directorate,ELAN COMPUTING LTD,1032125,6044.76
"Department for Business, Innovation and Skills","Department for Business, Innovation and Skills",27/07/2011,Technical Advice / Services & Support,Finance & Commercial Group - Finance Group,ELAN COMPUTING LTD,1032126,1479.84
"Department for Business, Innovation and Skills","Department for Business, Innovation and Skills",27/07/2011,Technical Advice / Services & Support,Finance & Commercial Group - Finance Group,ELAN COMPUTING LTD,1032127,1849.8
"Department for Business, Innovation and Skills","Department for Business, Innovation and Skills",27/07/2011,Technical Advice / Services & Support,Finance & Commercial Group - Finance Group,ELAN COMPUTING LTD,1032128,3699.6
"Department for Business, Innovation and Skills","Department for Business, Innovation and Skills",27/07/2011,Hire of Reprographic Equipment,Finance & Commercial Group - Commercial Directorate,SOUTH EAST DRAWING OFFICE LTD,1032129,630.94
"Department for Business, Innovation and Skills","Department for Business, Innovation and Skills",27/07/2011,Criminal Law and Prosecution Work,"Legal, People & Communications Group - Legal Services",KJB Partners Ltd,1032130,1718.78
"Department for Business, Innovation and Skills","Department for Business, Innovation and Skills",27/07/2011,Maintenance,Finance & Commercial Group - Commercial Directorate,JOHN BRADSHAW & SON LTD T/A BCL,1032131,450
"Department for Business, Innovation and Skills","Department for Business, Innovation and Skills",27/07/2011,Criminal Law and Prosecution Work,"Legal, People & Communications Group - Legal Services",KJB Partners Ltd,1032132,2399.04
"Department for Business, Innovation and Skills","Department for Business, Innovation and Skills",28/07/2011,Car Hire and Leasing (Programme),Shareholder Executive - Shareholder Executive,ARVAL (UK) LTD,1032133,97.8
"Department for Business, Innovation and Skills","Department for Business, Innovation and Skills",27/07/2011,Car Hire and Leasing,Business & Skills Group - Advanced Manufacturing Services,ARVAL (UK) LTD,1032136,70.32
"Department for Business, Innovation and Skills","Department for Business, Innovation and Skills",28/07/2011,Buildings Insurance,Finance & Commercial Group - Commercial Directorate,LAND SECURITIES PROPERTIES LTD,1032137,61477.02
"Department for Business, Innovation and Skills","Department for Business, Innovation and Skills",27/07/2011,Security Policy Service,Finance & Commercial Group - Commercial Directorate,CESG,1032138,4800
"Department for Business, Innovation and Skills","Department for Business, Innovation and Skills",27/07/2011,Other Accommodation Charges (Programme),Finance & Commercial Group - Commercial Directorate,EDDISONS COMMERCIAL (PROPERTY MANAGEMENT) LTD T/A EDDISONS,1032139,2792.8
"Department for Business, Innovation and Skills","Department for Business, Innovation and Skills",27/07/2011,Additions - Enterprise Equity Investments,Business & Skills Group - Enterprise Directorate,BERR EQUITY INVESTMENT PROGRAMMES (CAPITAL),1032140,127624.79
"Department for Business, Innovation and Skills","Department for Business, Innovation and Skills",27/07/2011,Static Line Rental,Knowledge and Innovation Group - Higher Education Admin,BRITISH TELECOMMUNICATIONS plc (BT),1032147,56.88
"Department for Business, Innovation and Skills","Department for Business, Innovation and Skills",27/07/2011,Static Call Charges,Knowledge and Innovation Group - Higher Education Admin,BRITISH TELECOMMUNICATIONS plc (BT),1032147,73.52
"Department for Business, Innovation and Skills","Department for Business, Innovation and Skills",27/07/2011,Taxis,Ministerial and Parliamentary Support Team - Ministerial and Parliamentary Support Team,GREATER LONDON HIRE LTD,1032148,117.9
"Department for Business, Innovation and Skills","Department for Business, Innovation and Skills",28/07/2011,Telecommunications,Finance & Commercial Group - Commercial Directorate,VIRGIN MEDIA BUSINESS LTD,1032188,780.67
"Department for Business, Innovation and Skills","Department for Business, Innovation and Skills",28/07/2011,Accelerated Development Programme/Fast Stream Training,"Legal, People & Communications Group - HRCM - Human Resources and Change Management Directorate",THE WHITEHALL AND INDUSTRY GROUP,1032194,450
"Department for Business, Innovation and Skills","Department for Business, Innovation and Skills",27/07/2011,Hire of Agency Staff (Clerical/Secretariat/Other),Ministerial and Parliamentary Support Team - Ministerial and Parliamentary Support Team,OFFICE ANGELS LTD,1032196,208.68
"Department for Business, Innovation and Skills","Department for Business, Innovation and Skills",27/07/2011,Hire of Agency Staff (Clerical/Secretariat/Other),Ministerial and Parliamentary Support Team - Ministerial and Parliamentary Support Team,OFFICE ANGELS LTD,1032196,310.62
"Department for Business, Innovation and Skills","Department for Business, Innovation and Skills",27/07/2011,Special Adjustments,"Legal, People & Communications Group - HRCM - Human Resources and Change Management Directorate",THE INSTITUTE OF OPTOMETRY,1032197,76
"Department for Business, Innovation and Skills","Department for Business, Innovation and Skills",27/07/2011,Other Telephone Costs,Shareholder Executive - Shareholder Executive,GENESYS CONFERENCING EUROPE,1032198,158.1
"Department for Business, Innovation and Skills","Department for Business, Innovation and Skills",28/07/2011,Telecommunications,Business & Skills Group - Advanced Manufacturing Services,TELEFONICA O2 UK LTD,1032205,14.51
"Department for Business, Innovation and Skills","Department for Business, Innovation and Skills",27/07/2011,Maintenance,Finance & Commercial Group - Commercial Directorate,SALTASH ENTERPRISES LTD,1032209,15600
"Department for Business, Innovation and Skills","Department for Business, Innovation and Skills",27/07/2011,Taxis,Market and Frameworks Group - Europe and World Trade Directorates,HUDSONS TAXIS,1032215,118
"Department for Business, Innovation and Skills","Department for Business, Innovation and Skills",27/07/2011,Taxis,Finance & Commercial Group - Finance Group,HUDSONS TAXIS,1032215,108
"Department for Business, Innovation and Skills","Department for Business, Innovation and Skills",27/07/2011,Cash Consolidated Fund Extra Receipts Paid Over to HM Treasury,Corporate Payments,DEPARTMENT OF FINANCE AND PERSONNEL (NORTHERN IRELAND),1032216,4864063
"Department for Business, Innovation and Skills","Department for Business, Innovation and Skills",27/07/2011,Cash Consolidated Fund Extra Receipts Paid Over to HM Treasury,Corporate Payments,ISLE OF MAN GOVERNMENT,1032217,281160
"Department for Business, Innovation and Skills","Department for Business, Innovation and Skills",27/07/2011,Cash Consolidated Fund Extra Receipts Paid Over to HM Treasury,Corporate Payments,STATES OF JERSEY,1032218,372479
"Department for Business, Innovation and Skills","Department for Business, Innovation and Skills",27/07/2011,Cash Consolidated Fund Extra Receipts Paid Over to HM Treasury,Corporate Payments,STATES OF GUERNSEY,1032219,241449
"Department for Business, Innovation and Skills","Department for Business, Innovation and Skills",28/07/2011,Criminal Law and Prosecution Work,"Legal, People & Communications Group - Legal Services",ALEXANDER ROOKE,1032220,443.38
"Department for Business, Innovation and Skills","Department for Business, Innovation and Skills",27/07/2011,Static Call Charges,Market and Frameworks Group - Business Environment,COMPANIES HOUSE,1032221,91.32
"Department for Business, Innovation and Skills","Department for Business, Innovation and Skills",27/07/2011,Hire of Agency Staff (Clerical/Secretariat/Other),Finance & Commercial Group - Commercial Directorate,OFFICE ANGELS LTD,1032222,492.76
"Department for Business, Innovation and Skills","Department for Business, Innovation and Skills",27/07/2011,Hire of Agency Staff (Clerical/Secretariat/Other),Finance & Commercial Group - Commercial Directorate,OFFICE ANGELS LTD,1032223,492.76
"Department for Business, Innovation and Skills","Department for Business, Innovation and Skills",27/07/2011,Courier Services,Finance & Commercial Group - Commercial Directorate,TNT UK LTD,1032224,48.12
"Department for Business, Innovation and Skills","Department for Business, Innovation and Skills",28/07/2011,Criminal Law and Prosecution Work,"Legal, People & Communications Group - Legal Services",SAFESTORE LTD,1032225,242.5
"Department for Business, Innovation and Skills","Department for Business, Innovation and Skills",27/07/2011,On-Line Databases,Knowledge and Innovation Group - Higher Education Admin,UCAS MEDIA LTD,1032226,4875
"Department for Business, Innovation and Skills","Department for Business, Innovation and Skills",27/07/2011,Local IT Maintenance & Support,Market and Frameworks Group - Business Environment,COMPANIES HOUSE,1032228,2069.95
"Department for Business, Innovation and Skills","Department for Business, Innovation and Skills",28/07/2011,Static Line Rental,"Legal, People & Communications Group - Communications Directorate",BRITISH TELECOMMUNICATIONS plc (BT),1032230,117.79
"Department for Business, Innovation and Skills","Department for Business, Innovation and Skills",28/07/2011,ICT Infrastructure Specific Service,Finance & Commercial Group - Commercial Directorate,EDUSERV TECHNOLOGIES LTD,1032237,13510.83
"Department for Business, Innovation and Skills","Department for Business, Innovation and Skills",28/07/2011,Maintenance,Finance & Commercial Group - Commercial Directorate,COFELY LTD,1032239,503.8
"Department for Business, Innovation and Skills","Department for Business, Innovation and Skills",28/07/2011,Maintenance,Finance & Commercial Group - Commercial Directorate,COFELY LTD,1032239,22.82
"Department for Business, Innovation and Skills","Department for Business, Innovation and Skills",29/07/2011,Financial Advice and Services,Knowledge and Innovation Group - Innovation,CAPITAL FOR ENTERPRISE LTD,1032242,8333.33
"Department for Business, Innovation and Skills","Department for Business, Innovation and Skills",28/07/2011,Other Printing and Stationery Costs,"Legal, People & Communications Group - Communications Directorate",PRESSGANG REPROGRAPHICS LTD,1032244,1800
"Department for Business, Innovation and Skills","Department for Business, Innovation and Skills",28/07/2011,ICT Infrastructure Specific Service,Finance & Commercial Group - Commercial Directorate,ELAN COMPUTING LTD,1032245,5460
"Department for Business, Innovation and Skills","Department for Business, Innovation and Skills",28/07/2011,ICT Infrastructure Specific Service,Finance & Commercial Group - Commercial Directorate,ELAN COMPUTING LTD,1032245,1625
"Department for Business, Innovation and Skills","Department for Business, Innovation and Skills",28/07/2011,Interest on Post Office Working Capital Loans,Shareholder Executive - Shareholder Executive,POST OFFICE LTD C/O ROYAL MAIL,1032247,-8293.56
"Department for Business, Innovation and Skills","Department for Business, Innovation and Skills",28/07/2011,Additions Post Office Ltd - Loans from Vote,Shareholder Executive - Shareholder Executive,POST OFFICE LTD C/O ROYAL MAIL,1032247,9000000
"Department for Business, Innovation and Skills","Department for Business, Innovation and Skills",28/07/2011,Stationery,"Legal, People & Communications Group - Legal Services",OFFICE DEPOT INTERNATIONAL (UK) LTD T/A VIKING DIRECT,1032249,28.97
"Department for Business, Innovation and Skills","Department for Business, Innovation and Skills",28/07/2011,Grants - Current - Other,Business & Skills Group - Information Economy,NATIONAL MICROELECTRONICS INSTITUTE (NMI),1032250,7500
"Department for Business, Innovation and Skills","Department for Business, Innovation and Skills",29/07/2011,Maintenance (Programme),Finance & Commercial Group - Commercial Directorate,SIGN SUPPLY LTD,1032251,460.25
"Department for Business, Innovation and Skills","Department for Business, Innovation and Skills",29/07/2011,Courier Services,Finance & Commercial Group - Commercial Directorate,TNT UK LTD,1032252,420.15
"Department for Business, Innovation and Skills","Department for Business, Innovation and Skills",28/07/2011,Car Hire and Leasing,Ministerial and Parliamentary Support Team - Ministerial and Parliamentary Support Team,GOVERNMENT CAR AND DESPATCH AGENCY,1032253,40
"Department for Business, Innovation and Skills","Department for Business, Innovation and Skills",28/07/2011,Mail and Messenger Contract Costs,Finance & Commercial Group - Commercial Directorate,MANPOWER UK LTD,1032254,2035.74
"Department for Business, Innovation and Skills","Department for Business, Innovation and Skills",28/07/2011,Maintenance of Office Machinery,Finance & Commercial Group - Commercial Directorate,PITNEY BOWES LTD,1032255,365.72
"Department for Business, Innovation and Skills","Department for Business, Innovation and Skills",28/07/2011,Media Services,Ministerial and Parliamentary Support Team - Ministerial and Parliamentary Support Team,COI COMMUNICATIONS,1032257,31000
"Department for Business, Innovation and Skills","Department for Business, Innovation and Skills",28/07/2011,Maintenance (Programme),Finance & Commercial Group - Commercial Directorate,OPUS ENERGY LTD,1032258,47215.96
"Department for Business, Innovation and Skills","Department for Business, Innovation and Skills",28/07/2011,Telephone Helpline Services,Market and Frameworks Group - Consumer and Competition Policy,MONEY ADVICE TRUST,1032259,250000
"Department for Business, Innovation and Skills","Department for Business, Innovation and Skills",28/07/2011,Other Accommodation Charges (Programme),Finance & Commercial Group - Commercial Directorate,IDEAL CLEANING SERVICES LTD,1032260,56.37
"Department for Business, Innovation and Skills","Department for Business, Innovation and Skills",28/07/2011,Recruitment Advice and Services,Business & Skills Group - RDA Transition and Closures,AON HEWITT LTD,1032261,5037.02
"Department for Business, Innovation and Skills","Department for Business, Innovation and Skills",28/07/2011,Other Accommodation Charges (Programme),Finance & Commercial Group - Commercial Directorate,EDDISONS COMMERCIAL (PROPERTY MANAGEMENT) LTD T/A EDDISONS,1032262,418.8
"Department for Business, Innovation and Skills","Department for Business, Innovation and Skills",29/07/2011,Non Grant-in-Aid Funding of Bodies (Departmental and Non-Departmental),Market and Frameworks Group - Consumer and Competition Policy,SCOTTISH ASSOCIATION CITIZENS ADVICE BUREAUX,1032265,494018
"Department for Business, Innovation and Skills","Department for Business, Innovation and Skills",28/07/2011,Entertaining UK,Office of Manpower Economics - Office of Manpower Economics,STAKIS LTD,1032266,446.26
"Department for Business, Innovation and Skills","Department for Business, Innovation and Skills",29/07/2011,Grants - Current - Other,Market and Frameworks Group - Consumer and Competition Policy,SCOTTISH ASSOCIATION CITIZENS ADVICE BUREAUX,1032267,327227
"Department for Business, Innovation and Skills","Department for Business, Innovation and Skills",28/07/2011,Electricity (Programme),Finance & Commercial Group - Commercial Directorate,INTERNATIONAL AIR TRANSPORT ASSOCIATION (IATA),1032275,593.82
"Department for Business, Innovation and Skills","Department for Business, Innovation and Skills",28/07/2011,Grants - Current - Other,Business & Skills Group - Skills Directorate,DISABILITY ALLIANCE EDUCATIONAL AND RESEARCH ASSOCIATION LTD,1032276,65000
"Department for Business, Innovation and Skills","Department for Business, Innovation and Skills",28/07/2011,Hire of Agency Staff (Clerical/Secretariat/Other),Shareholder Executive - Shareholder Executive,BROOK STREET (UK) LTD,1032278,749.35
"Department for Business, Innovation and Skills","Department for Business, Innovation and Skills",28/07/2011,Research & Development Expenditure (Programme),Knowledge and Innovation Group - Research Base,"ROYAL ACADEMY OF ENGINEERING, RAE",1032279,18314.81
"Department for Business, Innovation and Skills","Department for Business, Innovation and Skills",28/07/2011,Hire of Agency Staff (Clerical/Secretariat/Other),Shareholder Executive - Shareholder Executive,BROOK STREET (UK) LTD,1032281,916.8
"Department for Business, Innovation and Skills","Department for Business, Innovation and Skills",28/07/2011,Hire of Agency Staff (Clerical/Secretariat/Other),Ministerial and Parliamentary Support Team - Ministerial and Parliamentary Support Team,HAYS SPECIALIST RECRUITMENT LTD,1032282,424.8
"Department for Business, Innovation and Skills","Department for Business, Innovation and Skills",28/07/2011,Hire of Agency Staff (Clerical/Secretariat/Other),Ministerial and Parliamentary Support Team - Ministerial and Parliamentary Support Team,HAYS SPECIALIST RECRUITMENT LTD,1032285,428.04
"Department for Business, Innovation and Skills","Department for Business, Innovation and Skills",28/07/2011,Hire of Agency Staff (Clerical/Secretariat/Other),Ministerial and Parliamentary Support Team - Ministerial and Parliamentary Support Team,HAYS SPECIALIST RECRUITMENT LTD,1032285,95.88
"Department for Business, Innovation and Skills","Department for Business, Innovation and Skills",28/07/2011,Hire of Agency Staff (Clerical/Secretariat/Other),Ministerial and Parliamentary Support Team - Ministerial and Parliamentary Support Team,HAYS SPECIALIST RECRUITMENT LTD,1032288,464.64
"Department for Business, Innovation and Skills","Department for Business, Innovation and Skills",29/07/2011,Advertising for Public Appointments Paid by Service Provider,Shareholder Executive - Shareholder Executive,PETER LOCKYER ADVERTISING LTD,1032291,625
"Department for Business, Innovation and Skills","Department for Business, Innovation and Skills",29/07/2011,Static Line Rental,Knowledge and Innovation Group - Higher Education,BRITISH TELECOMMUNICATIONS plc (BT),1032293,56.88
"Department for Business, Innovation and Skills","Department for Business, Innovation and Skills",29/07/2011,Static Call Charges,Knowledge and Innovation Group - Higher Education,BRITISH TELECOMMUNICATIONS plc (BT),1032293,169.86
"Department for Business, Innovation and Skills","Department for Business, Innovation and Skills",29/07/2011,Other Telephone Costs,Knowledge and Innovation Group - Higher Education,BRITISH TELECOMMUNICATIONS plc (BT),1032293,10.8
"Department for Business, Innovation and Skills","Department for Business, Innovation and Skills",29/07/2011,Mobile Phones,Finance & Commercial Group - Commercial Directorate,VODAFONE LTD,1032294,51.06
"Department for Business, Innovation and Skills","Department for Business, Innovation and Skills",28/07/2011,Research & Development Expenditure (Programme),Knowledge and Innovation Group - Government Office For Science,FCO SERVICES,1032297,359.72
"Department for Business, Innovation and Skills","Department for Business, Innovation and Skills",29/07/2011,Mobile Phones,Finance & Commercial Group - Commercial Directorate,VODAFONE LTD,1032298,7.54
"Department for Business, Innovation and Skills","Department for Business, Innovation and Skills",29/07/2011,Research & Development Expenditure (Programme),Knowledge and Innovation Group - Government Office For Science,FCO SERVICES,1032299,9822.75
"Department for Business, Innovation and Skills","Department for Business, Innovation and Skills",29/07/2011,Research & Development Expenditure (Programme),Knowledge and Innovation Group - Government Office For Science,FCO SERVICES,1032299,5308.35
"Department for Business, Innovation and Skills","Department for Business, Innovation and Skills",29/07/2011,Research & Development Expenditure (Programme),Knowledge and Innovation Group - Government Office For Science,FCO SERVICES,1032299,300
"Department for Business, Innovation and Skills","Department for Business, Innovation and Skills",29/07/2011,Mobile Phones,Finance & Commercial Group - Commercial Directorate,VODAFONE LTD,1032301,1899.83
"Department for Business, Innovation and Skills","Department for Business, Innovation and Skills",29/07/2011,Legal Services and Advice Agency,"Legal, People & Communications Group - HRCM - Human Resources and Change Management Directorate",FLINT BISHOP LLP T/A FLINT BISHOP SOLICITORS,1032304,22
"Department for Business, Innovation and Skills","Department for Business, Innovation and Skills",29/07/2011,Leased Buildings - Clearing,Finance & Commercial Group - Commercial Directorate,JOHN BRADSHAW & SON LTD T/A BCL,1032306,2358
"Department for Business, Innovation and Skills","Department for Business, Innovation and Skills",29/07/2011,Grants - Current - Other,Knowledge and Innovation Group - Research Base,"STEMNET (THE SCIENCE, TECHNOLOGY, ENGINEERING AND MATHEMATICS NETWORK)",1032310,197750
"Department for Business, Innovation and Skills","Department for Business, Innovation and Skills",29/07/2011,Grants - Current - Other,Knowledge and Innovation Group - Research Base,"STEMNET (THE SCIENCE, TECHNOLOGY, ENGINEERING AND MATHEMATICS NETWORK)",1032310,184575
"Department for Business, Innovation and Skills","Department for Business, Innovation and Skills",29/07/2011,Grants - Current - Other,Knowledge and Innovation Group - Research Base,"STEMNET (THE SCIENCE, TECHNOLOGY, ENGINEERING AND MATHEMATICS NETWORK)",1032310,580100
"Department for Business, Innovation and Skills","Department for Business, Innovation and Skills",29/07/2011,Grants - Current - Other,Knowledge and Innovation Group - Research Base,"STEMNET (THE SCIENCE, TECHNOLOGY, ENGINEERING AND MATHEMATICS NETWORK)",1032310,474625
"Department for Business, Innovation and Skills","Department for Business, Innovation and Skills",29/07/2011,Grants - Current - Other,Knowledge and Innovation Group - Research Base,"STEMNET (THE SCIENCE, TECHNOLOGY, ENGINEERING AND MATHEMATICS NETWORK)",1032310,237325
"Department for Business, Innovation and Skills","Department for Business, Innovation and Skills",29/07/2011,Grants - Current - Other,Knowledge and Innovation Group - Research Base,"STEMNET (THE SCIENCE, TECHNOLOGY, ENGINEERING AND MATHEMATICS NETWORK)",1032311,1014500
"Department for Business, Innovation and Skills","Department for Business, Innovation and Skills",29/07/2011,Grants - Current - Other,Knowledge and Innovation Group - Research Base,"STEMNET (THE SCIENCE, TECHNOLOGY, ENGINEERING AND MATHEMATICS NETWORK)",1032311,136833
"Department for Business, Innovation and Skills","Department for Business, Innovation and Skills",29/07/2011,Grants - Current - Other,Knowledge and Innovation Group - Office of the Knowledge & Innovation DG,THE UNIVERSITY OF MANCHESTER,1032312,47511.4
"Department for Business, Innovation and Skills","Department for Business, Innovation and Skills",28/07/2011,Additions - Enterprise Equity Investments,Knowledge and Innovation Group - Innovation,BIS UK INNOVATION INVESTMENT FUND,1032313,381150.74
"Department for Business, Innovation and Skills","Department for Business, Innovation and Skills",29/07/2011,InfoSource Desktop Information and Research Services,Finance & Commercial Group - Commercial Directorate,ACKNOWLEDGE LTD,1032316,1350
"Department for Business, Innovation and Skills","Department for Business, Innovation and Skills",29/07/2011,Hire of Agency Staff (Professional/Management),"Legal, People & Communications Group - HRCM - Human Resources and Change Management Directorate",MORGAN LAW PARTNERS LLP,1032317,912
"Department for Business, Innovation and Skills","Department for Business, Innovation and Skills",29/07/2011,Hire of Agency Staff (Professional/Management),"Legal, People & Communications Group - HRCM - Human Resources and Change Management Directorate",MORGAN LAW PARTNERS LLP,1032318,2118
"Department for Business, Innovation and Skills","Department for Business, Innovation and Skills",29/07/2011,Hire of Agency Staff (Professional/Management),"Legal, People & Communications Group - HRCM - Human Resources and Change Management Directorate",MORGAN LAW PARTNERS LLP,1032319,1694.4
"Department for Business, Innovation and Skills","Department for Business, Innovation and Skills",29/07/2011,Hire of Agency Staff (Professional/Management),"Legal, People & Communications Group - HRCM - Human Resources and Change Management Directorate",MORGAN LAW PARTNERS LLP,1032320,1596.36
"Department for Business, Innovation and Skills","Department for Business, Innovation and Skills",29/07/2011,Hire of Agency Staff (Clerical/Secretariat/Other),Shareholder Executive - Shareholder Executive,BROOK STREET (UK) LTD,1032321,754.13
"Department for Business, Innovation and Skills","Department for Business, Innovation and Skills",29/07/2011,Goods Received Not Invoiced Accruals (SYSTEM),Corporate Payments,BERR SFLG PAYMENT TO LENDERS,1032322,-105876.11
"Department for Business, Innovation and Skills","Department for Business, Innovation and Skills",29/07/2011,Cash Expenditure during the Year - SFLG,Business & Skills Group - Enterprise Directorate,BERR SFLG PAYMENT TO LENDERS,1032322,1627352.2
"Department for Business, Innovation and Skills","Department for Business, Innovation and Skills",29/07/2011,Goods Received Not Invoiced Accruals (SYSTEM),Corporate Payments,BERR SFLG PAYMENT TO LENDERS,1032323,-62242.16
"Department for Business, Innovation and Skills","Department for Business, Innovation and Skills",29/07/2011,Cash Expenditure during the Year - SFLG,Business & Skills Group - Enterprise Directorate,BERR SFLG PAYMENT TO LENDERS,1032323,571251.73
"Department for Business, Innovation and Skills","Department for Business, Innovation and Skills",29/07/2011,Goods Received Not Invoiced Accruals (SYSTEM),Corporate Payments,BERR SFLG PAYMENT TO LENDERS,1032324,-147088.5
"Department for Business, Innovation and Skills","Department for Business, Innovation and Skills",29/07/2011,Cash Expenditure during the Year - SFLG,Business & Skills Group - Enterprise Directorate,BERR SFLG PAYMENT TO LENDERS,1032324,1094163.92
"Department for Business, Innovation and Skills","Department for Business, Innovation and Skills",29/07/2011,Goods Received Not Invoiced Accruals (SYSTEM),Corporate Payments,BERR SFLG PAYMENT TO LENDERS,1032325,-63306.1
"Department for Business, Innovation and Skills","Department for Business, Innovation and Skills",29/07/2011,Cash Expenditure during the Year - SFLG,Business & Skills Group - Enterprise Directorate,BERR SFLG PAYMENT TO LENDERS,1032325,644730.01
"Department for Business, Innovation and Skills","Department for Business, Innovation and Skills",29/07/2011,Cash Expenditure during the Year - SFLG,Business & Skills Group - Enterprise Directorate,BERR SFLG PAYMENT TO LENDERS,1032326,531.93
"Department for Business, Innovation and Skills","Department for Business, Innovation and Skills",29/07/2011,Cash Expenditure During the Year - EFG,Business & Skills Group - Enterprise Directorate,EFG PAYMENTS,1032327,866791.83
"Department for Business, Innovation and Skills","Department for Business, Innovation and Skills",29/07/2011,Goods Received Not Invoiced Accruals (SYSTEM),Corporate Payments,BERR SFLG PAYMENT TO LENDERS,1032328,-51689.37
"Department for Business, Innovation and Skills","Department for Business, Innovation and Skills",29/07/2011,Cash Expenditure during the Year - SFLG,Business & Skills Group - Enterprise Directorate,BERR SFLG PAYMENT TO LENDERS,1032328,157126.49
"Department for Business, Innovation and Skills","Department for Business, Innovation and Skills",29/07/2011,Criminal Law and Prosecution Work,"Legal, People & Communications Group - Legal Services",THOMAS MORAN,1032329,127.8
"Department for Business, Innovation and Skills","Department for Business, Innovation and Skills",29/07/2011,Cash Expenditure During the Year - EFG,Business & Skills Group - Enterprise Directorate,EFG PAYMENTS,1032330,406562.46
"Department for Business, Innovation and Skills","Department for Business, Innovation and Skills",29/07/2011,Cash Expenditure During the Year - EFG,Business & Skills Group - Enterprise Directorate,EFG PAYMENTS,1032331,234722.17
"Department for Business, Innovation and Skills","Department for Business, Innovation and Skills",29/07/2011,Goods Received Not Invoiced Accruals (SYSTEM),Corporate Payments,EFG PAYMENTS,1032332,-867.19
"Department for Business, Innovation and Skills","Department for Business, Innovation and Skills",29/07/2011,Cash Expenditure During the Year - EFG,Business & Skills Group - Enterprise Directorate,EFG PAYMENTS,1032332,856742
"Department for Business, Innovation and Skills","Department for Business, Innovation and Skills",29/07/2011,Cash Expenditure During the Year - EFG,Business & Skills Group - Enterprise Directorate,EFG PAYMENTS,1032334,853443.09
"Department for Business, Innovation and Skills","Department for Business, Innovation and Skills",29/07/2011,Cash Expenditure During the Year - EFG,Business & Skills Group - Enterprise Directorate,EFG PAYMENTS,1032335,442381.7
"Department for Business, Innovation and Skills","Department for Business, Innovation and Skills",29/07/2011,Criminal Law and Prosecution Work,"Legal, People & Communications Group - Legal Services",FCO SERVICES,1032336,524.37
"Department for Business, Innovation and Skills","Department for Business, Innovation and Skills",29/07/2011,Cash Expenditure During the Year - EFG,Business & Skills Group - Enterprise Directorate,EFG PAYMENTS,1032337,1258400.95
"Department for Business, Innovation and Skills","Department for Business, Innovation and Skills",29/07/2011,Cash Expenditure During the Year - EFG,Business & Skills Group - Enterprise Directorate,EFG PAYMENTS,1032338,8687.62
"Department for Business, Innovation and Skills","Department for Business, Innovation and Skills",29/07/2011,Cash Expenditure During the Year - EFG,Business & Skills Group - Enterprise Directorate,EFG PAYMENTS,1032339,38323.39
"Department for Business, Innovation and Skills","Department for Business, Innovation and Skills",29/07/2011,Cash Expenditure during the Year - SFLG,Business & Skills Group - Enterprise Directorate,BERR SFLG PAYMENT TO LENDERS,1032340,32739.43
"Department for Business, Innovation and Skills","Department for Business, Innovation and Skills",29/07/2011,Cash Expenditure during the Year - SFLG,Business & Skills Group - Enterprise Directorate,BERR SFLG PAYMENT TO LENDERS,1032342,40122.53
"Department for Business, Innovation and Skills","Department for Business, Innovation and Skills",29/07/2011,Goods Received Not Invoiced Accruals (SYSTEM),Corporate Payments,BERR SFLG PAYMENT TO LENDERS,1032343,-3812.25
"Department for Business, Innovation and Skills","Department for Business, Innovation and Skills",29/07/2011,Cash Expenditure during the Year - SFLG,Business & Skills Group - Enterprise Directorate,BERR SFLG PAYMENT TO LENDERS,1032343,260007.3
"Department for Business, Innovation and Skills","Department for Business, Innovation and Skills",29/07/2011,Criminal Law and Prosecution Work,"Legal, People & Communications Group - Legal Services",FCO SERVICES,1032344,150
"Department for Business, Innovation and Skills","Department for Business, Innovation and Skills",29/07/2011,Criminal Law and Prosecution Work,"Legal, People & Communications Group - Legal Services",FCO SERVICES,1032345,150
"Department for Business, Innovation and Skills","Department for Business, Innovation and Skills",29/07/2011,Cash Expenditure during the Year - SFLG,Business & Skills Group - Enterprise Directorate,BERR SFLG PAYMENT TO LENDERS,1032347,160074.93
"Department for Business, Innovation and Skills","Department for Business, Innovation and Skills",29/07/2011,Interest on Post Office Working Capital Loans,Shareholder Executive - Shareholder Executive,POST OFFICE LTD C/O ROYAL MAIL,1032348,-8507.26
"Department for Business, Innovation and Skills","Department for Business, Innovation and Skills",29/07/2011,Additions Post Office Ltd - Loans from Vote,Shareholder Executive - Shareholder Executive,POST OFFICE LTD C/O ROYAL MAIL,1032348,139000000
"Department for Business, Innovation and Skills","Department for Business, Innovation and Skills",29/07/2011,Cash Expenditure During the Year - EFG,Business & Skills Group - Enterprise Directorate,EFG PAYMENTS,1032350,2424215.81
"Department for Business, Innovation and Skills","Department for Business, Innovation and Skills",29/07/2011,Cash Expenditure During the Year - EFG,Business & Skills Group - Enterprise Directorate,EFG PAYMENTS,1032350,-54731.2
"Department for Business, Innovation and Skills","Department for Business, Innovation and Skills",29/07/2011,Cash Expenditure During the Year - EFG,Business & Skills Group - Enterprise Directorate,BERR SFLG PAYMENT TO LENDERS,1032351,-146730.16
"Department for Business, Innovation and Skills","Department for Business, Innovation and Skills",29/07/2011,Cash Expenditure during the Year - SFLG,Business & Skills Group - Enterprise Directorate,BERR SFLG PAYMENT TO LENDERS,1032351,472264.28
"Department for Business, Innovation and Skills","Department for Business, Innovation and Skills",29/07/2011,Corporate Management Consultancy,Finance & Commercial Group - Finance Group,CONSENSIA CONSULTING LTD,1032354,2692.5
"Department for Business, Innovation and Skills","Department for Business, Innovation and Skills",29/07/2011,Freight Charges,Finance & Commercial Group - Commercial Directorate,DHL GLOBAL FORWARDING (UK) LTD,1032356,1389.03
"Department for Business, Innovation and Skills","Department for Business, Innovation and Skills",29/07/2011,Grants - Current - Other,Market and Frameworks Group - Consumer and Competition Policy,CITY OF YORK COUNCIL,1032360,20834
"Department for Business, Innovation and Skills","Department for Business, Innovation and Skills",29/07/2011,Grants - Current - Other,Market and Frameworks Group - Consumer and Competition Policy,CITY OF YORK COUNCIL,1032360,20834
"Department for Business, Innovation and Skills","Department for Business, Innovation and Skills",29/07/2011,Grants - Current - Other,Market and Frameworks Group - Consumer and Competition Policy,CITY OF YORK COUNCIL,1032360,7120.26
"Department for Business, Innovation and Skills","Department for Business, Innovation and Skills",29/07/2011,Courier Services,Finance & Commercial Group - Commercial Directorate,TNT UK LTD,1032363,32.08
"Department for Business, Innovation and Skills","Department for Business, Innovation and Skills",29/07/2011,"Furniture, Fixtures & Fittings - Clearing",Finance & Commercial Group - Commercial Directorate,POSTURITE UK LTD,1032365,589.98
"Department for Business, Innovation and Skills","Department for Business, Innovation and Skills",29/07/2011,Secondees (not paid directly),Knowledge and Innovation Group - Government Office For Science,DSTL,1032366,11997.74
"Department for Business, Innovation and Skills","Department for Business, Innovation and Skills",29/07/2011,"Furniture, Fixtures & Fittings - Clearing",Finance & Commercial Group - Commercial Directorate,POSTURITE UK LTD,1032368,142.63
"Department for Business, Innovation and Skills","Department for Business, Innovation and Skills",29/07/2011,Mobile Phones,Knowledge and Innovation Group - Government Office For Science,VODAFONE LTD,1032369,23.84
"Department for Business, Innovation and Skills","Department for Business, Innovation and Skills",29/07/2011,Hire of Reprographic Equipment,Finance & Commercial Group - Commercial Directorate,GBC (UK) LTD,1032370,2070
"Department for Business, Innovation and Skills","Department for Business, Innovation and Skills",29/07/2011,Postage,Finance & Commercial Group - Commercial Directorate,PITNEY BOWES PURCHASE POWER A TRADING DIVISION OF PITNEY BOWES LTD,1032371,10302
"Department for Business, Innovation and Skills","Department for Business, Innovation and Skills",29/07/2011,Maintenance,Finance & Commercial Group - Commercial Directorate,A TO Z SAFE WAREHOUSE LTD,1032372,99
"Department for Business, Innovation and Skills","Department for Business, Innovation and Skills",29/07/2011,Media Services,"Legal, People & Communications Group - Communications Directorate",NEWS INTERNATIONAL ASSOCIATED SERVICES LTD,1032379,1456
"Department for Business, Innovation and Skills","Department for Business, Innovation and Skills",29/07/2011,Cash Consolidated Fund Extra Receipts Paid Over to HM Treasury,Corporate Payments,CONSOLIDATED FUND ACCOUNT 6622,1032400,47000000
"Department for Business, Innovation and Skills","Department for Business, Innovation and Skills",01/07/2011,Subsistence Payments Overseas,Business & Skills Group - Economic Development Directorate,"Personal Expenses, Name Witheld",10278150,26.19
"Department for Business, Innovation and Skills","Department for Business, Innovation and Skills",01/07/2011,Other Overseas Travel & Subsistence,Business & Skills Group - Economic Development Directorate,"Personal Expenses, Name Witheld",10278150,11.25
"Department for Business, Innovation and Skills","Department for Business, Innovation and Skills",01/07/2011,Rail Fares,Knowledge and Innovation Group - Research Base,"Personal Expenses, Name Witheld",10278151,6.1
"Department for Business, Innovation and Skills","Department for Business, Innovation and Skills",01/07/2011,Subsistence Payments Overseas,Knowledge and Innovation Group - Research Base,"Personal Expenses, Name Witheld",10278151,6.57
"Department for Business, Innovation and Skills","Department for Business, Innovation and Skills",01/07/2011,Other Overseas Travel & Subsistence,Knowledge and Innovation Group - Research Base,"Personal Expenses, Name Witheld",10278151,6.5
"Department for Business, Innovation and Skills","Department for Business, Innovation and Skills",01/07/2011,Other UK Travel & Subsistence,Knowledge and Innovation Group - Research Base,"Personal Expenses, Name Witheld",10278152,10.57
"Department for Business, Innovation and Skills","Department for Business, Innovation and Skills",01/07/2011,Rail Fares Overseas,Knowledge and Innovation Group - Research Base,"Personal Expenses, Name Witheld",10278152,2.4
"Department for Business, Innovation and Skills","Department for Business, Innovation and Skills",01/07/2011,Other Overseas Travel & Subsistence,Knowledge and Innovation Group - Research Base,"Personal Expenses, Name Witheld",10278152,19.23
"Department for Business, Innovation and Skills","Department for Business, Innovation and Skills",01/07/2011,Taxis,Market and Frameworks Group - Europe and World Trade Directorates,"Personal Expenses, Name Witheld",10278154,30
"Department for Business, Innovation and Skills","Department for Business, Innovation and Skills",01/07/2011,Rail Fares Overseas,Market and Frameworks Group - Europe and World Trade Directorates,"Personal Expenses, Name Witheld",10278154,61.05
"Department for Business, Innovation and Skills","Department for Business, Innovation and Skills",01/07/2011,Hotels Overseas,Market and Frameworks Group - Europe and World Trade Directorates,"Personal Expenses, Name Witheld",10278154,522.38
"Department for Business, Innovation and Skills","Department for Business, Innovation and Skills",01/07/2011,Subsistence Payments Overseas,Market and Frameworks Group - Europe and World Trade Directorates,"Personal Expenses, Name Witheld",10278154,20
"Department for Business, Innovation and Skills","Department for Business, Innovation and Skills",01/07/2011,Taxis,Market and Frameworks Group - Market Frameworks DG,"Personal Expenses, Name Witheld",10278159,140
"Department for Business, Innovation and Skills","Department for Business, Innovation and Skills",01/07/2011,Taxis Overseas,Market and Frameworks Group - Market Frameworks DG,"Personal Expenses, Name Witheld",10278159,6.17
"Department for Business, Innovation and Skills","Department for Business, Innovation and Skills",01/07/2011,Subsistence Payments Overseas,Market and Frameworks Group - Market Frameworks DG,"Personal Expenses, Name Witheld",10278159,20
"Department for Business, Innovation and Skills","Department for Business, Innovation and Skills",01/07/2011,Rail Fares,Knowledge and Innovation Group - Research Base,"Personal Expenses, Name Witheld",10278160,5
"Department for Business, Innovation and Skills","Department for Business, Innovation and Skills",01/07/2011,Rail Fares Overseas,Knowledge and Innovation Group - Research Base,"Personal Expenses, Name Witheld",10278160,3.9
"Department for Business, Innovation and Skills","Department for Business, Innovation and Skills",01/07/2011,Subsistence Payments Overseas,Knowledge and Innovation Group - Research Base,"Personal Expenses, Name Witheld",10278160,31.44
"Department for Business, Innovation and Skills","Department for Business, Innovation and Skills",01/07/2011,Other Overseas Travel & Subsistence,Knowledge and Innovation Group - Research Base,"Personal Expenses, Name Witheld",10278160,10
"Department for Business, Innovation and Skills","Department for Business, Innovation and Skills",01/07/2011,Rail Fares Overseas,Knowledge and Innovation Group - Research Base,"Personal Expenses, Name Witheld",10278161,1.61
"Department for Business, Innovation and Skills","Department for Business, Innovation and Skills",01/07/2011,Subsistence Payments Overseas,Knowledge and Innovation Group - Research Base,"Personal Expenses, Name Witheld",10278161,119.46
"Department for Business, Innovation and Skills","Department for Business, Innovation and Skills",01/07/2011,Other Overseas Travel & Subsistence,Knowledge and Innovation Group - Research Base,"Personal Expenses, Name Witheld",10278161,10
"Department for Business, Innovation and Skills","Department for Business, Innovation and Skills",01/07/2011,Rail Fares Overseas,Knowledge and Innovation Group - Research Base,"Personal Expenses, Name Witheld",10278162,1.58
"Department for Business, Innovation and Skills","Department for Business, Innovation and Skills",01/07/2011,Subsistence Payments Overseas,Knowledge and Innovation Group - Research Base,"Personal Expenses, Name Witheld",10278162,30.39
"Department for Business, Innovation and Skills","Department for Business, Innovation and Skills",01/07/2011,Other Overseas Travel & Subsistence,Knowledge and Innovation Group - Research Base,"Personal Expenses, Name Witheld",10278162,10
"Department for Business, Innovation and Skills","Department for Business, Innovation and Skills",01/07/2011,Mileage Allowances,Office of Manpower Economics - Office of Manpower Economics,"Personal Expenses, Name Witheld",10278167,95.4
"Department for Business, Innovation and Skills","Department for Business, Innovation and Skills",01/07/2011,Subsistence Payments,Office of Manpower Economics - Office of Manpower Economics,"Personal Expenses, Name Witheld",10278167,30.15
"Department for Business, Innovation and Skills","Department for Business, Innovation and Skills",01/07/2011,Other UK Travel & Subsistence,Office of Manpower Economics - Office of Manpower Economics,"Personal Expenses, Name Witheld",10278167,18.6
"Department for Business, Innovation and Skills","Department for Business, Innovation and Skills",01/07/2011,Taxis,Office of Manpower Economics - Office of Manpower Economics,"Personal Expenses, Name Witheld",10278168,9
"Department for Business, Innovation and Skills","Department for Business, Innovation and Skills",01/07/2011,Mileage Allowances,Office of Manpower Economics - Office of Manpower Economics,"Personal Expenses, Name Witheld",10278169,4.5
"Department for Business, Innovation and Skills","Department for Business, Innovation and Skills",01/07/2011,Subsistence Payments,Office of Manpower Economics - Office of Manpower Economics,"Personal Expenses, Name Witheld",10278169,26.2
"Department for Business, Innovation and Skills","Department for Business, Innovation and Skills",01/07/2011,Entertaining UK,Office of Manpower Economics - Office of Manpower Economics,"Personal Expenses, Name Witheld",10278169,28.84
"Department for Business, Innovation and Skills","Department for Business, Innovation and Skills",01/07/2011,Subsistence Payments,Office of Manpower Economics - Office of Manpower Economics,"Personal Expenses, Name Witheld",10278170,3.45
"Department for Business, Innovation and Skills","Department for Business, Innovation and Skills",01/07/2011,Other UK Travel & Subsistence,Office of Manpower Economics - Office of Manpower Economics,"Personal Expenses, Name Witheld",10278170,10
"Department for Business, Innovation and Skills","Department for Business, Innovation and Skills",01/07/2011,Rail Fares,Office of Manpower Economics - Office of Manpower Economics,"Personal Expenses, Name Witheld",10278171,71.25
"Department for Business, Innovation and Skills","Department for Business, Innovation and Skills",01/07/2011,Mileage Allowances,Office of Manpower Economics - Office of Manpower Economics,"Personal Expenses, Name Witheld",10278171,3.6
"Department for Business, Innovation and Skills","Department for Business, Innovation and Skills",01/07/2011,Subsistence Payments,Office of Manpower Economics - Office of Manpower Economics,"Personal Expenses, Name Witheld",10278171,20
"Department for Business, Innovation and Skills","Department for Business, Innovation and Skills",01/07/2011,Other UK Travel & Subsistence,Office of Manpower Economics - Office of Manpower Economics,"Personal Expenses, Name Witheld",10278171,13.7
"Department for Business, Innovation and Skills","Department for Business, Innovation and Skills",01/07/2011,Mileage Allowances,Office of Manpower Economics - Office of Manpower Economics,"Personal Expenses, Name Witheld",10278172,27.9
"Department for Business, Innovation and Skills","Department for Business, Innovation and Skills",01/07/2011,Subsistence Payments,Office of Manpower Economics - Office of Manpower Economics,"Personal Expenses, Name Witheld",10278172,28.6
"Department for Business, Innovation and Skills","Department for Business, Innovation and Skills",01/07/2011,Other UK Travel & Subsistence,Office of Manpower Economics - Office of Manpower Economics,"Personal Expenses, Name Witheld",10278172,33.7
"Department for Business, Innovation and Skills","Department for Business, Innovation and Skills",01/07/2011,Mileage Allowances,Office of Manpower Economics - Office of Manpower Economics,"Personal Expenses, Name Witheld",10278173,3.6
"Department for Business, Innovation and Skills","Department for Business, Innovation and Skills",01/07/2011,Subsistence Payments,Office of Manpower Economics - Office of Manpower Economics,"Personal Expenses, Name Witheld",10278173,9.69
"Department for Business, Innovation and Skills","Department for Business, Innovation and Skills",01/07/2011,Other UK Travel & Subsistence,Office of Manpower Economics - Office of Manpower Economics,"Personal Expenses, Name Witheld",10278173,7.7
"Department for Business, Innovation and Skills","Department for Business, Innovation and Skills",01/07/2011,Rail Fares (Programme),Shareholder Executive - Shareholder Executive,"Personal Expenses, Name Witheld",10278174,10
"Department for Business, Innovation and Skills","Department for Business, Innovation and Skills",01/07/2011,Taxis (Programme),Shareholder Executive - Shareholder Executive,"Personal Expenses, Name Witheld",10278174,29
"Department for Business, Innovation and Skills","Department for Business, Innovation and Skills",01/07/2011,Subsistence Payments (Programme),Shareholder Executive - Shareholder Executive,"Personal Expenses, Name Witheld",10278174,14.3
"Department for Business, Innovation and Skills","Department for Business, Innovation and Skills",01/07/2011,Others UK Travel & Subsistence (Programme),Shareholder Executive - Shareholder Executive,"Personal Expenses, Name Witheld",10278174,5
"Department for Business, Innovation and Skills","Department for Business, Innovation and Skills",01/07/2011,Rail Fares,"Legal, People & Communications Group - Communications Directorate","Personal Expenses, Name Witheld",10278175,48.85
"Department for Business, Innovation and Skills","Department for Business, Innovation and Skills",01/07/2011,Postage,"Legal, People & Communications Group - Legal Services","Personal Expenses, Name Witheld",10278176,11.04
"Department for Business, Innovation and Skills","Department for Business, Innovation and Skills",01/07/2011,Rail Fares,Business & Skills Group - Economic Development Directorate,"Personal Expenses, Name Witheld",10278177,1018.8
"Department for Business, Innovation and Skills","Department for Business, Innovation and Skills",01/07/2011,Taxis,Business & Skills Group - Economic Development Directorate,"Personal Expenses, Name Witheld",10278177,242.9
"Department for Business, Innovation and Skills","Department for Business, Innovation and Skills",01/07/2011,Hotels,Business & Skills Group - Economic Development Directorate,"Personal Expenses, Name Witheld",10278177,363.5
"Department for Business, Innovation and Skills","Department for Business, Innovation and Skills",04/07/2011,Taxis Overseas,Shareholder Executive - Shareholder Executive,"Personal Expenses, Name Witheld",10278180,116.87
"Department for Business, Innovation and Skills","Department for Business, Innovation and Skills",04/07/2011,Hotels Overseas,Shareholder Executive - Shareholder Executive,"Personal Expenses, Name Witheld",10278180,168.84
"Department for Business, Innovation and Skills","Department for Business, Innovation and Skills",04/07/2011,Subsistence Payments Overseas,Shareholder Executive - Shareholder Executive,"Personal Expenses, Name Witheld",10278180,10
"Department for Business, Innovation and Skills","Department for Business, Innovation and Skills",04/07/2011,Taxis,Business & Skills Group - Economic Development Directorate,"Personal Expenses, Name Witheld",10278181,17
"Department for Business, Innovation and Skills","Department for Business, Innovation and Skills",04/07/2011,Mileage Allowances,Business & Skills Group - Economic Development Directorate,"Personal Expenses, Name Witheld",10278181,25.2
"Department for Business, Innovation and Skills","Department for Business, Innovation and Skills",04/07/2011,Subsistence Payments,Business & Skills Group - Economic Development Directorate,"Personal Expenses, Name Witheld",10278181,53
"Department for Business, Innovation and Skills","Department for Business, Innovation and Skills",04/07/2011,Rail Fares,Business & Skills Group - Economic Development Directorate,"Personal Expenses, Name Witheld",10278183,33.8
"Department for Business, Innovation and Skills","Department for Business, Innovation and Skills",04/07/2011,Mileage Allowances,Business & Skills Group - Economic Development Directorate,"Personal Expenses, Name Witheld",10278183,172.95
"Department for Business, Innovation and Skills","Department for Business, Innovation and Skills",05/07/2011,Postage,Market and Frameworks Group - Labour Market,"Personal Expenses, Name Witheld",10278192,3.08
"Department for Business, Innovation and Skills","Department for Business, Innovation and Skills",05/07/2011,Office Supplies,Market and Frameworks Group - Labour Market,"Personal Expenses, Name Witheld",10278192,2.25
"Department for Business, Innovation and Skills","Department for Business, Innovation and Skills",05/07/2011,Rail Fares,Office of Manpower Economics - Office of Manpower Economics,"Personal Expenses, Name Witheld",10278193,122.15
"Department for Business, Innovation and Skills","Department for Business, Innovation and Skills",05/07/2011,Taxis,Office of Manpower Economics - Office of Manpower Economics,"Personal Expenses, Name Witheld",10278193,27
"Department for Business, Innovation and Skills","Department for Business, Innovation and Skills",05/07/2011,Subsistence Payments,Office of Manpower Economics - Office of Manpower Economics,"Personal Expenses, Name Witheld",10278193,5.34
"Department for Business, Innovation and Skills","Department for Business, Innovation and Skills",05/07/2011,Taxis,Business & Skills Group - Advanced Manufacturing Services,"Personal Expenses, Name Witheld",10278194,29.2
"Department for Business, Innovation and Skills","Department for Business, Innovation and Skills",05/07/2011,Rail Fares,ESBR - Better Regulation Executive (BRE),"Personal Expenses, Name Witheld",10278195,111.35
"Department for Business, Innovation and Skills","Department for Business, Innovation and Skills",05/07/2011,Mileage Allowances,ESBR - Better Regulation Executive (BRE),"Personal Expenses, Name Witheld",10278195,25.2
"Department for Business, Innovation and Skills","Department for Business, Innovation and Skills",05/07/2011,Other UK Travel & Subsistence,ESBR - Better Regulation Executive (BRE),"Personal Expenses, Name Witheld",10278195,7.6
"Department for Business, Innovation and Skills","Department for Business, Innovation and Skills",05/07/2011,Rail Fares,ESBR - Better Regulation Executive (BRE),"Personal Expenses, Name Witheld",10278196,192.4
"Department for Business, Innovation and Skills","Department for Business, Innovation and Skills",05/07/2011,Other UK Travel & Subsistence,ESBR - Better Regulation Executive (BRE),"Personal Expenses, Name Witheld",10278196,21.3
"Department for Business, Innovation and Skills","Department for Business, Innovation and Skills",05/07/2011,Rail Fares,ESBR - Better Regulation Executive (BRE),"Personal Expenses, Name Witheld",10278197,129.25
"Department for Business, Innovation and Skills","Department for Business, Innovation and Skills",05/07/2011,Mileage Allowances,ESBR - Better Regulation Executive (BRE),"Personal Expenses, Name Witheld",10278197,67.5
"Department for Business, Innovation and Skills","Department for Business, Innovation and Skills",05/07/2011,Other UK Travel & Subsistence,ESBR - Better Regulation Executive (BRE),"Personal Expenses, Name Witheld",10278197,15.6
"Department for Business, Innovation and Skills","Department for Business, Innovation and Skills",05/07/2011,Mileage Allowances,Office of Manpower Economics - Office of Manpower Economics,"Personal Expenses, Name Witheld",10278198,58.4
"Department for Business, Innovation and Skills","Department for Business, Innovation and Skills",05/07/2011,Other UK Travel & Subsistence,Office of Manpower Economics - Office of Manpower Economics,"Personal Expenses, Name Witheld",10278198,4
"Department for Business, Innovation and Skills","Department for Business, Innovation and Skills",05/07/2011,Mileage Allowances,ESBR - Analysis Directorate,"Personal Expenses, Name Witheld",10278199,88.8
"Department for Business, Innovation and Skills","Department for Business, Innovation and Skills",05/07/2011,Taxis,Market and Frameworks Group - Europe and World Trade Directorates,"Personal Expenses, Name Witheld",10278200,26.8
"Department for Business, Innovation and Skills","Department for Business, Innovation and Skills",05/07/2011,Rail Fares,Business & Skills Group - Enterprise Directorate,"Personal Expenses, Name Witheld",10278201,28.1
"Department for Business, Innovation and Skills","Department for Business, Innovation and Skills",05/07/2011,Taxis,Business & Skills Group - Enterprise Directorate,"Personal Expenses, Name Witheld",10278201,9.7
"Department for Business, Innovation and Skills","Department for Business, Innovation and Skills",05/07/2011,Mileage Allowances,Business & Skills Group - Enterprise Directorate,"Personal Expenses, Name Witheld",10278201,84.15
"Department for Business, Innovation and Skills","Department for Business, Innovation and Skills",05/07/2011,Rail Fares Overseas,Market and Frameworks Group - Business Environment,"Personal Expenses, Name Witheld",10278202,2.18
"Department for Business, Innovation and Skills","Department for Business, Innovation and Skills",05/07/2011,Hotels Overseas,Market and Frameworks Group - Business Environment,"Personal Expenses, Name Witheld",10278202,111.63
"Department for Business, Innovation and Skills","Department for Business, Innovation and Skills",05/07/2011,Subsistence Payments Overseas,Market and Frameworks Group - Business Environment,"Personal Expenses, Name Witheld",10278202,23.57
"Department for Business, Innovation and Skills","Department for Business, Innovation and Skills",05/07/2011,Subsistence Payments Overseas,Market and Frameworks Group - Business Environment,"Personal Expenses, Name Witheld",10278202,23.03
"Department for Business, Innovation and Skills","Department for Business, Innovation and Skills",05/07/2011,Other Overseas Travel & Subsistence,Market and Frameworks Group - Business Environment,"Personal Expenses, Name Witheld",10278202,10
"Department for Business, Innovation and Skills","Department for Business, Innovation and Skills",05/07/2011,Rail Fares,Business & Skills Group - Advanced Manufacturing Services,"Personal Expenses, Name Witheld",10278203,20.5
"Department for Business, Innovation and Skills","Department for Business, Innovation and Skills",05/07/2011,Taxis,Business & Skills Group - Advanced Manufacturing Services,"Personal Expenses, Name Witheld",10278203,13
"Department for Business, Innovation and Skills","Department for Business, Innovation and Skills",05/07/2011,Taxis Overseas,Business & Skills Group - Advanced Manufacturing Services,"Personal Expenses, Name Witheld",10278203,33.11
"Department for Business, Innovation and Skills","Department for Business, Innovation and Skills",05/07/2011,Subsistence Payments Overseas,Business & Skills Group - Advanced Manufacturing Services,"Personal Expenses, Name Witheld",10278203,109.04
"Department for Business, Innovation and Skills","Department for Business, Innovation and Skills",05/07/2011,Other Overseas Travel & Subsistence,Business & Skills Group - Advanced Manufacturing Services,"Personal Expenses, Name Witheld",10278203,26.9
"Department for Business, Innovation and Skills","Department for Business, Innovation and Skills",05/07/2011,Rail Fares Overseas,Knowledge and Innovation Group - Innovation,"Personal Expenses, Name Witheld",10278204,6.43
"Department for Business, Innovation and Skills","Department for Business, Innovation and Skills",05/07/2011,Subsistence Payments Overseas,Knowledge and Innovation Group - Innovation,"Personal Expenses, Name Witheld",10278204,10.53
"Department for Business, Innovation and Skills","Department for Business, Innovation and Skills",05/07/2011,Taxis Overseas,Market and Frameworks Group - Europe and World Trade Directorates,"Personal Expenses, Name Witheld",10278205,54.89
"Department for Business, Innovation and Skills","Department for Business, Innovation and Skills",05/07/2011,Subsistence Payments Overseas,Market and Frameworks Group - Europe and World Trade Directorates,"Personal Expenses, Name Witheld",10278205,38.92
"Department for Business, Innovation and Skills","Department for Business, Innovation and Skills",05/07/2011,Other Overseas Travel & Subsistence,Market and Frameworks Group - Europe and World Trade Directorates,"Personal Expenses, Name Witheld",10278205,26.99
"Department for Business, Innovation and Skills","Department for Business, Innovation and Skills",05/07/2011,Taxis,Market and Frameworks Group - Europe and World Trade Directorates,"Personal Expenses, Name Witheld",10278206,4.5
"Department for Business, Innovation and Skills","Department for Business, Innovation and Skills",05/07/2011,Taxis Overseas,Market and Frameworks Group - Europe and World Trade Directorates,"Personal Expenses, Name Witheld",10278206,13.39
"Department for Business, Innovation and Skills","Department for Business, Innovation and Skills",05/07/2011,Subsistence Payments Overseas,Market and Frameworks Group - Europe and World Trade Directorates,"Personal Expenses, Name Witheld",10278206,10
"Department for Business, Innovation and Skills","Department for Business, Innovation and Skills",05/07/2011,Other Overseas Travel & Subsistence,Market and Frameworks Group - Europe and World Trade Directorates,"Personal Expenses, Name Witheld",10278206,7.15
"Department for Business, Innovation and Skills","Department for Business, Innovation and Skills",05/07/2011,Taxis Overseas,Market and Frameworks Group - Europe and World Trade Directorates,"Personal Expenses, Name Witheld",10278207,62.83
"Department for Business, Innovation and Skills","Department for Business, Innovation and Skills",05/07/2011,Other Overseas Travel & Subsistence,Market and Frameworks Group - Europe and World Trade Directorates,"Personal Expenses, Name Witheld",10278207,10
"Department for Business, Innovation and Skills","Department for Business, Innovation and Skills",05/07/2011,Rail Fares Overseas,Market and Frameworks Group - Consumer and Competition Policy,"Personal Expenses, Name Witheld",10278208,3.37
"Department for Business, Innovation and Skills","Department for Business, Innovation and Skills",05/07/2011,Subsistence Payments Overseas,Market and Frameworks Group - Consumer and Competition Policy,"Personal Expenses, Name Witheld",10278208,10
"Department for Business, Innovation and Skills","Department for Business, Innovation and Skills",05/07/2011,Rail Fares Overseas,Market and Frameworks Group - Consumer and Competition Policy,"Personal Expenses, Name Witheld",10278209,1.67
"Department for Business, Innovation and Skills","Department for Business, Innovation and Skills",05/07/2011,Taxis Overseas,Market and Frameworks Group - Consumer and Competition Policy,"Personal Expenses, Name Witheld",10278209,18.52
"Department for Business, Innovation and Skills","Department for Business, Innovation and Skills",05/07/2011,Subsistence Payments Overseas,Market and Frameworks Group - Consumer and Competition Policy,"Personal Expenses, Name Witheld",10278209,10
"Department for Business, Innovation and Skills","Department for Business, Innovation and Skills",05/07/2011,Hotels Overseas,Market and Frameworks Group - Europe and World Trade Directorates,"Personal Expenses, Name Witheld",10278210,170.69
"Department for Business, Innovation and Skills","Department for Business, Innovation and Skills",05/07/2011,Subsistence Payments Overseas,Market and Frameworks Group - Europe and World Trade Directorates,"Personal Expenses, Name Witheld",10278210,17.72
"Department for Business, Innovation and Skills","Department for Business, Innovation and Skills",05/07/2011,Other Overseas Travel & Subsistence,Market and Frameworks Group - Europe and World Trade Directorates,"Personal Expenses, Name Witheld",10278210,10.97
"Department for Business, Innovation and Skills","Department for Business, Innovation and Skills",05/07/2011,Rail Fares Overseas,Market and Frameworks Group - Europe and World Trade Directorates,"Personal Expenses, Name Witheld",10278211,6.52
"Department for Business, Innovation and Skills","Department for Business, Innovation and Skills",05/07/2011,Hotels Overseas,Market and Frameworks Group - Europe and World Trade Directorates,"Personal Expenses, Name Witheld",10278211,184.1
"Department for Business, Innovation and Skills","Department for Business, Innovation and Skills",05/07/2011,Subsistence Payments Overseas,Market and Frameworks Group - Europe and World Trade Directorates,"Personal Expenses, Name Witheld",10278211,35.63
"Department for Business, Innovation and Skills","Department for Business, Innovation and Skills",05/07/2011,Taxis,Market and Frameworks Group - Business Environment,"Personal Expenses, Name Witheld",10278212,28
"Department for Business, Innovation and Skills","Department for Business, Innovation and Skills",05/07/2011,Subsistence Payments Overseas,Market and Frameworks Group - Business Environment,"Personal Expenses, Name Witheld",10278212,23.72
"Department for Business, Innovation and Skills","Department for Business, Innovation and Skills",05/07/2011,Taxis,Market and Frameworks Group - Business Environment,"Personal Expenses, Name Witheld",10278213,30
"Department for Business, Innovation and Skills","Department for Business, Innovation and Skills",05/07/2011,Subsistence Payments Overseas,Market and Frameworks Group - Business Environment,"Personal Expenses, Name Witheld",10278213,20.96
"Department for Business, Innovation and Skills","Department for Business, Innovation and Skills",05/07/2011,Taxis,Market and Frameworks Group - Business Environment,"Personal Expenses, Name Witheld",10278214,28
"Department for Business, Innovation and Skills","Department for Business, Innovation and Skills",05/07/2011,Subsistence Payments Overseas,Market and Frameworks Group - Business Environment,"Personal Expenses, Name Witheld",10278214,29.73
"Department for Business, Innovation and Skills","Department for Business, Innovation and Skills",05/07/2011,Rail Fares,Market and Frameworks Group - Business Environment,"Personal Expenses, Name Witheld",10278215,4
"Department for Business, Innovation and Skills","Department for Business, Innovation and Skills",05/07/2011,Subsistence Payments Overseas,Market and Frameworks Group - Business Environment,"Personal Expenses, Name Witheld",10278215,4.85
"Department for Business, Innovation and Skills","Department for Business, Innovation and Skills",05/07/2011,Rail Fares,Knowledge and Innovation Group - Higher Education Admin,"Personal Expenses, Name Witheld",10278216,145.5
"Department for Business, Innovation and Skills","Department for Business, Innovation and Skills",05/07/2011,Rail Fares,Knowledge and Innovation Group - Office of the Knowledge & Innovation DG,"Personal Expenses, Name Witheld",10278217,8
"Department for Business, Innovation and Skills","Department for Business, Innovation and Skills",05/07/2011,Rail Fares,Office of Manpower Economics - Office of Manpower Economics,"Personal Expenses, Name Witheld",10278218,5.5
"Department for Business, Innovation and Skills","Department for Business, Innovation and Skills",05/07/2011,Mileage Allowances,Office of Manpower Economics - Office of Manpower Economics,"Personal Expenses, Name Witheld",10278218,0.8
"Department for Business, Innovation and Skills","Department for Business, Innovation and Skills",05/07/2011,Rail Fares,"Legal, People & Communications Group - Communications Directorate","Personal Expenses, Name Witheld",10278219,4.9
"Department for Business, Innovation and Skills","Department for Business, Innovation and Skills",05/07/2011,Rail Fares,Knowledge and Innovation Group - Higher Education Admin,"Personal Expenses, Name Witheld",10278220,66
"Department for Business, Innovation and Skills","Department for Business, Innovation and Skills",05/07/2011,Other UK Travel & Subsistence,Knowledge and Innovation Group - Higher Education Admin,"Personal Expenses, Name Witheld",10278220,6.6
"Department for Business, Innovation and Skills","Department for Business, Innovation and Skills",05/07/2011,Other UK Travel & Subsistence,Knowledge and Innovation Group - Higher Education Admin,"Personal Expenses, Name Witheld",10278220,12.5
"Department for Business, Innovation and Skills","Department for Business, Innovation and Skills",05/07/2011,Rail Fares,Business & Skills Group - RDA Transition and Closures,"Personal Expenses, Name Witheld",10278221,73
"Department for Business, Innovation and Skills","Department for Business, Innovation and Skills",05/07/2011,Taxis,Business & Skills Group - RDA Transition and Closures,"Personal Expenses, Name Witheld",10278221,29
"Department for Business, Innovation and Skills","Department for Business, Innovation and Skills",05/07/2011,Mileage Allowances (Programme),Business & Skills Group - Advanced Manufacturing Services,"Personal Expenses, Name Witheld",10278222,9.9
"Department for Business, Innovation and Skills","Department for Business, Innovation and Skills",05/07/2011,Subsistence Payments (Programme),Business & Skills Group - Advanced Manufacturing Services,"Personal Expenses, Name Witheld",10278222,72.2
"Department for Business, Innovation and Skills","Department for Business, Innovation and Skills",05/07/2011,Subsistence Payments (Programme),Business & Skills Group - Advanced Manufacturing Services,"Personal Expenses, Name Witheld",10278222,16.91
"Department for Business, Innovation and Skills","Department for Business, Innovation and Skills",05/07/2011,Others UK Travel & Subsistence (Programme),Business & Skills Group - Advanced Manufacturing Services,"Personal Expenses, Name Witheld",10278222,25.18
"Department for Business, Innovation and Skills","Department for Business, Innovation and Skills",05/07/2011,Others UK Travel & Subsistence (Programme),Business & Skills Group - Advanced Manufacturing Services,"Personal Expenses, Name Witheld",10278222,10
"Department for Business, Innovation and Skills","Department for Business, Innovation and Skills",05/07/2011,Rail Fares Overseas,"Legal, People & Communications Group - Communications Directorate","Personal Expenses, Name Witheld",10278223,182.5
"Department for Business, Innovation and Skills","Department for Business, Innovation and Skills",05/07/2011,Subsistence Payments Overseas,"Legal, People & Communications Group - Communications Directorate","Personal Expenses, Name Witheld",10278223,26.94
"Department for Business, Innovation and Skills","Department for Business, Innovation and Skills",06/07/2011,Mileage Allowances,Shareholder Executive - Shareholder Executive,"Personal Expenses, Name Witheld",10278225,27
"Department for Business, Innovation and Skills","Department for Business, Innovation and Skills",06/07/2011,Mileage Allowances,Business & Skills Group - Economic Development Directorate,"Personal Expenses, Name Witheld",10278226,64.52
"Department for Business, Innovation and Skills","Department for Business, Innovation and Skills",06/07/2011,Rail Fares,Office of Manpower Economics - Office of Manpower Economics,"Personal Expenses, Name Witheld",10278227,16.4
"Department for Business, Innovation and Skills","Department for Business, Innovation and Skills",06/07/2011,Taxis,Business & Skills Group - Enterprise Directorate,"Personal Expenses, Name Witheld",10278228,35
"Department for Business, Innovation and Skills","Department for Business, Innovation and Skills",06/07/2011,Rail Fares,Knowledge and Innovation Group - Research Base,"Personal Expenses, Name Witheld",10278229,8
"Department for Business, Innovation and Skills","Department for Business, Innovation and Skills",06/07/2011,Mileage Allowances,Knowledge and Innovation Group - Research Base,"Personal Expenses, Name Witheld",10278229,1.2
"Department for Business, Innovation and Skills","Department for Business, Innovation and Skills",06/07/2011,Rail Fares Overseas,Knowledge and Innovation Group - Research Base,"Personal Expenses, Name Witheld",10278229,11.46
"Department for Business, Innovation and Skills","Department for Business, Innovation and Skills",06/07/2011,Hotels Overseas,Knowledge and Innovation Group - Research Base,"Personal Expenses, Name Witheld",10278229,57.13
"Department for Business, Innovation and Skills","Department for Business, Innovation and Skills",06/07/2011,Subsistence Payments Overseas,Knowledge and Innovation Group - Research Base,"Personal Expenses, Name Witheld",10278229,28.46
"Department for Business, Innovation and Skills","Department for Business, Innovation and Skills",06/07/2011,Other Overseas Travel & Subsistence,Knowledge and Innovation Group - Research Base,"Personal Expenses, Name Witheld",10278229,10
"Department for Business, Innovation and Skills","Department for Business, Innovation and Skills",06/07/2011,Rail Fares,"Legal, People & Communications Group - Legal Services","Personal Expenses, Name Witheld",10278231,7.7
"Department for Business, Innovation and Skills","Department for Business, Innovation and Skills",06/07/2011,Taxis Overseas,"Legal, People & Communications Group - Legal Services","Personal Expenses, Name Witheld",10278231,17.4
"Department for Business, Innovation and Skills","Department for Business, Innovation and Skills",06/07/2011,Subsistence Payments Overseas,"Legal, People & Communications Group - Legal Services","Personal Expenses, Name Witheld",10278231,59.92
"Department for Business, Innovation and Skills","Department for Business, Innovation and Skills",06/07/2011,Other Overseas Travel & Subsistence,"Legal, People & Communications Group - Legal Services","Personal Expenses, Name Witheld",10278231,29.64
"Department for Business, Innovation and Skills","Department for Business, Innovation and Skills",06/07/2011,Rail Fares (Programme),Market and Frameworks Group - Europe and World Trade Directorates,"Personal Expenses, Name Witheld",10278232,3.8
"Department for Business, Innovation and Skills","Department for Business, Innovation and Skills",06/07/2011,Hotels- Overseas  (Programme),Market and Frameworks Group - Europe and World Trade Directorates,"Personal Expenses, Name Witheld",10278232,392.15
"Department for Business, Innovation and Skills","Department for Business, Innovation and Skills",06/07/2011,Subsistence Payments- Overseas (Programme),Market and Frameworks Group - Europe and World Trade Directorates,"Personal Expenses, Name Witheld",10278232,90
"Department for Business, Innovation and Skills","Department for Business, Innovation and Skills",06/07/2011,Other Overseas Travel & Subsistence (Programme),Market and Frameworks Group - Europe and World Trade Directorates,"Personal Expenses, Name Witheld",10278232,20
"Department for Business, Innovation and Skills","Department for Business, Innovation and Skills",06/07/2011,Other UK Travel & Subsistence,Knowledge and Innovation Group - Research Base,"Personal Expenses, Name Witheld",10278233,8.2
"Department for Business, Innovation and Skills","Department for Business, Innovation and Skills",06/07/2011,Rail Fares Overseas,Knowledge and Innovation Group - Research Base,"Personal Expenses, Name Witheld",10278233,1.34
"Department for Business, Innovation and Skills","Department for Business, Innovation and Skills",06/07/2011,Subsistence Payments Overseas,Knowledge and Innovation Group - Research Base,"Personal Expenses, Name Witheld",10278233,20.09
"Department for Business, Innovation and Skills","Department for Business, Innovation and Skills",06/07/2011,Rail Fares Overseas,Market and Frameworks Group - Consumer and Competition Policy,"Personal Expenses, Name Witheld",10278234,9.9
"Department for Business, Innovation and Skills","Department for Business, Innovation and Skills",06/07/2011,Subsistence Payments Overseas,Market and Frameworks Group - Consumer and Competition Policy,"Personal Expenses, Name Witheld",10278234,31.55
"Department for Business, Innovation and Skills","Department for Business, Innovation and Skills",06/07/2011,Other Overseas Travel & Subsistence,Market and Frameworks Group - Consumer and Competition Policy,"Personal Expenses, Name Witheld",10278234,10
"Department for Business, Innovation and Skills","Department for Business, Innovation and Skills",06/07/2011,Other Overseas Travel & Subsistence,Knowledge and Innovation Group - UK Space Agency,"Personal Expenses, Name Witheld",10278235,380
"Department for Business, Innovation and Skills","Department for Business, Innovation and Skills",07/07/2011,Staff Transfer/Detached Duty Costs,Knowledge and Innovation Group - Innovation,"Personal Expenses, Name Witheld",10278237,273.33
"Department for Business, Innovation and Skills","Department for Business, Innovation and Skills",07/07/2011,Grants - Current - Other,Knowledge and Innovation Group - Research Base,"Personal Expenses, Name Witheld",10278239,219
"Department for Business, Innovation and Skills","Department for Business, Innovation and Skills",07/07/2011,Mileage Allowances,Office of Manpower Economics - Office of Manpower Economics,"Personal Expenses, Name Witheld",10278245,79.2
"Department for Business, Innovation and Skills","Department for Business, Innovation and Skills",07/07/2011,Subsistence Payments,Office of Manpower Economics - Office of Manpower Economics,"Personal Expenses, Name Witheld",10278245,20.95
"Department for Business, Innovation and Skills","Department for Business, Innovation and Skills",07/07/2011,Other UK Travel & Subsistence,Office of Manpower Economics - Office of Manpower Economics,"Personal Expenses, Name Witheld",10278245,4.8
"Department for Business, Innovation and Skills","Department for Business, Innovation and Skills",07/07/2011,Rail Fares,Business & Skills Group - Advanced Manufacturing Services,"Personal Expenses, Name Witheld",10278246,9.8
"Department for Business, Innovation and Skills","Department for Business, Innovation and Skills",07/07/2011,Mileage Allowances,Office of Manpower Economics - Office of Manpower Economics,"Personal Expenses, Name Witheld",10278247,10.8
"Department for Business, Innovation and Skills","Department for Business, Innovation and Skills",07/07/2011,Hotels,Office of Manpower Economics - Office of Manpower Economics,"Personal Expenses, Name Witheld",10278247,231.5
"Department for Business, Innovation and Skills","Department for Business, Innovation and Skills",07/07/2011,Subsistence Payments,Office of Manpower Economics - Office of Manpower Economics,"Personal Expenses, Name Witheld",10278247,56.49
"Department for Business, Innovation and Skills","Department for Business, Innovation and Skills",07/07/2011,Rail Fares,Office of Manpower Economics - Office of Manpower Economics,"Personal Expenses, Name Witheld",10278248,73.2
"Department for Business, Innovation and Skills","Department for Business, Innovation and Skills",07/07/2011,Mileage Allowances,Office of Manpower Economics - Office of Manpower Economics,"Personal Expenses, Name Witheld",10278248,10.8
"Department for Business, Innovation and Skills","Department for Business, Innovation and Skills",07/07/2011,Hotels,Office of Manpower Economics - Office of Manpower Economics,"Personal Expenses, Name Witheld",10278248,196
"Department for Business, Innovation and Skills","Department for Business, Innovation and Skills",07/07/2011,Subsistence Payments,Office of Manpower Economics - Office of Manpower Economics,"Personal Expenses, Name Witheld",10278248,29
"Department for Business, Innovation and Skills","Department for Business, Innovation and Skills",07/07/2011,Rail Fares,Business & Skills Group - USG Admin,"Personal Expenses, Name Witheld",10278249,37
"Department for Business, Innovation and Skills","Department for Business, Innovation and Skills",07/07/2011,Taxis,Market and Frameworks Group - Consumer and Competition Policy,"Personal Expenses, Name Witheld",10278250,15.9
"Department for Business, Innovation and Skills","Department for Business, Innovation and Skills",07/07/2011,Rail Fares,Business & Skills Group - Advanced Manufacturing Services,"Personal Expenses, Name Witheld",10278251,39.9
"Department for Business, Innovation and Skills","Department for Business, Innovation and Skills",07/07/2011,Taxis,Business & Skills Group - Advanced Manufacturing Services,"Personal Expenses, Name Witheld",10278251,11.7
"Department for Business, Innovation and Skills","Department for Business, Innovation and Skills",07/07/2011,Subsistence Payments,Business & Skills Group - Advanced Manufacturing Services,"Personal Expenses, Name Witheld",10278251,224
"Department for Business, Innovation and Skills","Department for Business, Innovation and Skills",07/07/2011,Other UK Travel & Subsistence,Business & Skills Group - Advanced Manufacturing Services,"Personal Expenses, Name Witheld",10278251,15.5
"Department for Business, Innovation and Skills","Department for Business, Innovation and Skills",07/07/2011,Subsistence Payments,Shareholder Executive - Shareholder Executive,"Personal Expenses, Name Witheld",10278252,34.11
"Department for Business, Innovation and Skills","Department for Business, Innovation and Skills",07/07/2011,Hospitality - UK,Shareholder Executive - Shareholder Executive,"Personal Expenses, Name Witheld",10278253,70.03
"Department for Business, Innovation and Skills","Department for Business, Innovation and Skills",07/07/2011,Mobile Call Charges,Shareholder Executive - Shareholder Executive,"Personal Expenses, Name Witheld",10278254,19.68
"Department for Business, Innovation and Skills","Department for Business, Innovation and Skills",07/07/2011,Publications,ESBR - Analysis Directorate,"Personal Expenses, Name Witheld",10278255,12.18
"Department for Business, Innovation and Skills","Department for Business, Innovation and Skills",07/07/2011,Rail Fares Overseas,Knowledge and Innovation Group - Research Base,"Personal Expenses, Name Witheld",10278263,3.49
"Department for Business, Innovation and Skills","Department for Business, Innovation and Skills",07/07/2011,Taxis Overseas,Knowledge and Innovation Group - Research Base,"Personal Expenses, Name Witheld",10278263,9.7
"Department for Business, Innovation and Skills","Department for Business, Innovation and Skills",07/07/2011,Subsistence Payments Overseas,Knowledge and Innovation Group - Research Base,"Personal Expenses, Name Witheld",10278263,10
"Department for Business, Innovation and Skills","Department for Business, Innovation and Skills",07/07/2011,Other Overseas Travel & Subsistence,Knowledge and Innovation Group - Research Base,"Personal Expenses, Name Witheld",10278263,32.5
"Department for Business, Innovation and Skills","Department for Business, Innovation and Skills",07/07/2011,Mileage Allowances,Business & Skills Group - Advanced Manufacturing Services,"Personal Expenses, Name Witheld",10278264,28.7
"Department for Business, Innovation and Skills","Department for Business, Innovation and Skills",07/07/2011,Subsistence Payments Overseas,Business & Skills Group - Advanced Manufacturing Services,"Personal Expenses, Name Witheld",10278264,8.92
"Department for Business, Innovation and Skills","Department for Business, Innovation and Skills",07/07/2011,Rail Fares,Business & Skills Group - Advanced Manufacturing Services,"Personal Expenses, Name Witheld",10278265,2.8
"Department for Business, Innovation and Skills","Department for Business, Innovation and Skills",07/07/2011,Rail Fares Overseas,Business & Skills Group - Advanced Manufacturing Services,"Personal Expenses, Name Witheld",10278265,19.47
"Department for Business, Innovation and Skills","Department for Business, Innovation and Skills",07/07/2011,Other Overseas Travel & Subsistence,Business & Skills Group - Advanced Manufacturing Services,"Personal Expenses, Name Witheld",10278265,10.01
"Department for Business, Innovation and Skills","Department for Business, Innovation and Skills",07/07/2011,Taxis,Market and Frameworks Group - Europe and World Trade Directorates,"Personal Expenses, Name Witheld",10278266,22
"Department for Business, Innovation and Skills","Department for Business, Innovation and Skills",07/07/2011,Rail Fares Overseas,Market and Frameworks Group - Europe and World Trade Directorates,"Personal Expenses, Name Witheld",10278266,2.97
"Department for Business, Innovation and Skills","Department for Business, Innovation and Skills",07/07/2011,Subsistence Payments Overseas,Market and Frameworks Group - Europe and World Trade Directorates,"Personal Expenses, Name Witheld",10278266,4.86
"Department for Business, Innovation and Skills","Department for Business, Innovation and Skills",07/07/2011,Other Overseas Travel & Subsistence,Market and Frameworks Group - Europe and World Trade Directorates,"Personal Expenses, Name Witheld",10278266,1.61
"Department for Business, Innovation and Skills","Department for Business, Innovation and Skills",08/07/2011,Mileage Allowances,Business & Skills Group - Economic Development Directorate,"Personal Expenses, Name Witheld",10278270,163.8
"Department for Business, Innovation and Skills","Department for Business, Innovation and Skills",08/07/2011,Other UK Travel & Subsistence,Business & Skills Group - Economic Development Directorate,"Personal Expenses, Name Witheld",10278270,11.6
"Department for Business, Innovation and Skills","Department for Business, Innovation and Skills",08/07/2011,Rail Fares,"Legal, People & Communications Group - Communications Directorate","Personal Expenses, Name Witheld",10278271,34.9
"Department for Business, Innovation and Skills","Department for Business, Innovation and Skills",08/07/2011,Taxis,"Legal, People & Communications Group - Communications Directorate","Personal Expenses, Name Witheld",10278271,73
"Department for Business, Innovation and Skills","Department for Business, Innovation and Skills",08/07/2011,Taxis,Knowledge and Innovation Group - Innovation,"Personal Expenses, Name Witheld",10278272,9.5
"Department for Business, Innovation and Skills","Department for Business, Innovation and Skills",08/07/2011,Other UK Travel & Subsistence,Knowledge and Innovation Group - Innovation,"Personal Expenses, Name Witheld",10278272,2.2
"Department for Business, Innovation and Skills","Department for Business, Innovation and Skills",08/07/2011,Rail Fares Overseas,Knowledge and Innovation Group - Innovation,"Personal Expenses, Name Witheld",10278272,6.33
"Department for Business, Innovation and Skills","Department for Business, Innovation and Skills",08/07/2011,Subsistence Payments Overseas,Knowledge and Innovation Group - Innovation,"Personal Expenses, Name Witheld",10278272,31.06
"Department for Business, Innovation and Skills","Department for Business, Innovation and Skills",08/07/2011,Professional Subscriptions,Shareholder Executive - Shareholder Executive,"Personal Expenses, Name Witheld",10278281,164
"Department for Business, Innovation and Skills","Department for Business, Innovation and Skills",08/07/2011,Hospitality - UK,Business & Skills Group - Economic Development Directorate,"Personal Expenses, Name Witheld",10278282,38.88
"Department for Business, Innovation and Skills","Department for Business, Innovation and Skills",08/07/2011,Rail Fares,Business & Skills Group - Business & Skills,"Personal Expenses, Name Witheld",10278283,44
"Department for Business, Innovation and Skills","Department for Business, Innovation and Skills",08/07/2011,Subsistence Payments,Business & Skills Group - Business & Skills,"Personal Expenses, Name Witheld",10278283,5
"Department for Business, Innovation and Skills","Department for Business, Innovation and Skills",11/07/2011,Taxis,Ministerial and Parliamentary Support Team - Ministerial and Parliamentary Support Team,"Personal Expenses, Name Witheld",10278285,18
"Department for Business, Innovation and Skills","Department for Business, Innovation and Skills",11/07/2011,Taxis (Programme),Shareholder Executive - Shareholder Executive,"Personal Expenses, Name Witheld",10278286,77
"Department for Business, Innovation and Skills","Department for Business, Innovation and Skills",11/07/2011,Mileage Allowances (Programme),Shareholder Executive - Shareholder Executive,"Personal Expenses, Name Witheld",10278286,148.7
"Department for Business, Innovation and Skills","Department for Business, Innovation and Skills",11/07/2011,Subsistence Payments (Programme),Shareholder Executive - Shareholder Executive,"Personal Expenses, Name Witheld",10278286,83.36
"Department for Business, Innovation and Skills","Department for Business, Innovation and Skills",11/07/2011,Others UK Travel & Subsistence (Programme),Shareholder Executive - Shareholder Executive,"Personal Expenses, Name Witheld",10278286,27.8
"Department for Business, Innovation and Skills","Department for Business, Innovation and Skills",11/07/2011,Subsistence Payments (Programme),Shareholder Executive - Shareholder Executive,"Personal Expenses, Name Witheld",10278287,79.65
"Department for Business, Innovation and Skills","Department for Business, Innovation and Skills",11/07/2011,Others UK Travel & Subsistence (Programme),Shareholder Executive - Shareholder Executive,"Personal Expenses, Name Witheld",10278287,9.3
"Department for Business, Innovation and Skills","Department for Business, Innovation and Skills",11/07/2011,Postage,"Legal, People & Communications Group - Legal Services","Personal Expenses, Name Witheld",10278294,22.55
"Department for Business, Innovation and Skills","Department for Business, Innovation and Skills",11/07/2011,Reprographic Services,Shareholder Executive - Shareholder Executive,"Personal Expenses, Name Witheld",10278295,51.9
"Department for Business, Innovation and Skills","Department for Business, Innovation and Skills",11/07/2011,Reprographic Services,Shareholder Executive - Shareholder Executive,"Personal Expenses, Name Witheld",10278295,10.95
"Department for Business, Innovation and Skills","Department for Business, Innovation and Skills",11/07/2011,Professional Subscriptions (Programme),Shareholder Executive - Shareholder Executive,"Personal Expenses, Name Witheld",10278296,134.9
"Department for Business, Innovation and Skills","Department for Business, Innovation and Skills",11/07/2011,Professional Subscriptions (Programme),Shareholder Executive - Shareholder Executive,"Personal Expenses, Name Witheld",10278297,240
"Department for Business, Innovation and Skills","Department for Business, Innovation and Skills",11/07/2011,Subsistence Payments Overseas,Ministerial and Parliamentary Support Team - Ministerial and Parliamentary Support Team,"Personal Expenses, Name Witheld",10278298,31.25
"Department for Business, Innovation and Skills","Department for Business, Innovation and Skills",11/07/2011,Rail Fares (Programme),Knowledge and Innovation Group - Innovation,"Personal Expenses, Name Witheld",10278299,140
"Department for Business, Innovation and Skills","Department for Business, Innovation and Skills",11/07/2011,Hotels (Programme),Knowledge and Innovation Group - Innovation,"Personal Expenses, Name Witheld",10278299,600
"Department for Business, Innovation and Skills","Department for Business, Innovation and Skills",11/07/2011,Subsistence Payments (Programme),Knowledge and Innovation Group - Innovation,"Personal Expenses, Name Witheld",10278299,46.86
"Department for Business, Innovation and Skills","Department for Business, Innovation and Skills",11/07/2011,Others UK Travel & Subsistence (Programme),Knowledge and Innovation Group - Innovation,"Personal Expenses, Name Witheld",10278299,50
"Department for Business, Innovation and Skills","Department for Business, Innovation and Skills",11/07/2011,Rail Fares,Knowledge and Innovation Group - Research Base,"Personal Expenses, Name Witheld",10278300,7.2
"Department for Business, Innovation and Skills","Department for Business, Innovation and Skills",11/07/2011,Taxis,Knowledge and Innovation Group - Research Base,"Personal Expenses, Name Witheld",10278300,30
"Department for Business, Innovation and Skills","Department for Business, Innovation and Skills",11/07/2011,Subsistence Payments Overseas,Knowledge and Innovation Group - Research Base,"Personal Expenses, Name Witheld",10278300,165.61
"Department for Business, Innovation and Skills","Department for Business, Innovation and Skills",12/07/2011,Taxis,Market and Frameworks Group - Consumer and Competition Policy,"Personal Expenses, Name Witheld",10278306,6
"Department for Business, Innovation and Skills","Department for Business, Innovation and Skills",12/07/2011,Other UK Travel & Subsistence,Market and Frameworks Group - Consumer and Competition Policy,"Personal Expenses, Name Witheld",10278306,0.89
"Department for Business, Innovation and Skills","Department for Business, Innovation and Skills",12/07/2011,Rail Fares Overseas,Market and Frameworks Group - Consumer and Competition Policy,"Personal Expenses, Name Witheld",10278306,3.76
"Department for Business, Innovation and Skills","Department for Business, Innovation and Skills",12/07/2011,Subsistence Payments Overseas,Market and Frameworks Group - Consumer and Competition Policy,"Personal Expenses, Name Witheld",10278306,52.32
"Department for Business, Innovation and Skills","Department for Business, Innovation and Skills",12/07/2011,Other Overseas Travel & Subsistence,Market and Frameworks Group - Consumer and Competition Policy,"Personal Expenses, Name Witheld",10278306,10
"Department for Business, Innovation and Skills","Department for Business, Innovation and Skills",12/07/2011,Hotels Overseas,Market and Frameworks Group - Europe and World Trade Directorates,"Personal Expenses, Name Witheld",10278307,163.71
"Department for Business, Innovation and Skills","Department for Business, Innovation and Skills",12/07/2011,Subsistence Payments Overseas,Market and Frameworks Group - Europe and World Trade Directorates,"Personal Expenses, Name Witheld",10278307,87.35
"Department for Business, Innovation and Skills","Department for Business, Innovation and Skills",12/07/2011,Other Overseas Travel & Subsistence,Market and Frameworks Group - Europe and World Trade Directorates,"Personal Expenses, Name Witheld",10278307,10
"Department for Business, Innovation and Skills","Department for Business, Innovation and Skills",12/07/2011,Rail Fares Overseas,Market and Frameworks Group - Export Control Organisation,"Personal Expenses, Name Witheld",10278308,8.19
"Department for Business, Innovation and Skills","Department for Business, Innovation and Skills",12/07/2011,Hotels Overseas,Market and Frameworks Group - Export Control Organisation,"Personal Expenses, Name Witheld",10278308,126.15
"Department for Business, Innovation and Skills","Department for Business, Innovation and Skills",12/07/2011,Subsistence Payments Overseas,Market and Frameworks Group - Export Control Organisation,"Personal Expenses, Name Witheld",10278308,28.29
"Department for Business, Innovation and Skills","Department for Business, Innovation and Skills",12/07/2011,Other Overseas Travel & Subsistence,Market and Frameworks Group - Export Control Organisation,"Personal Expenses, Name Witheld",10278308,10
"Department for Business, Innovation and Skills","Department for Business, Innovation and Skills",12/07/2011,Rail Fares Overseas,"Legal, People & Communications Group - Legal Services","Personal Expenses, Name Witheld",10278309,4.05
"Department for Business, Innovation and Skills","Department for Business, Innovation and Skills",12/07/2011,Taxis Overseas,"Legal, People & Communications Group - Legal Services","Personal Expenses, Name Witheld",10278309,11.71
"Department for Business, Innovation and Skills","Department for Business, Innovation and Skills",12/07/2011,Subsistence Payments Overseas,"Legal, People & Communications Group - Legal Services","Personal Expenses, Name Witheld",10278309,12.61
"Department for Business, Innovation and Skills","Department for Business, Innovation and Skills",12/07/2011,Rail Fares (Programme),Market and Frameworks Group - Europe and World Trade Directorates,"Personal Expenses, Name Witheld",10278310,3.8
"Department for Business, Innovation and Skills","Department for Business, Innovation and Skills",12/07/2011,Rail Fares - Overseas (Programme),Market and Frameworks Group - Europe and World Trade Directorates,"Personal Expenses, Name Witheld",10278310,234
